{"text_format":"1","workbook":"xlsx","n_sheets":8,"sheets":["Лист1","Калькулятор","Додаток 21 \"Форма інформування\"","Продукты","Паспорт кредиту","Калькулятор Сайт","Лист2","Лист3"],"not_rendered":{"charts":0,"images":0,"macros":1,"external_links":0,"defined_names":2,"comments":0,"pivot_tables":0},"unopened":[],"bounds":{"document_bytes":16777216,"sheet_cells":100000,"rows_first":2000,"rows_last":500,"rows_between":2000,"halvings":0,"cell_chars":16384,"cell_head_chars":4096},"cells_cut":0,"cells_raw":0,"read":"whole","date_system":"1900"}

{"sheet":"Лист1","index":0,"n_rows":71,"n_cols":7,"rows_kept":71,"cut":false,"hidden":true,"merged":[[69,0,69,6],[62,0,62,1],[62,3,62,5],[70,0,70,6],[63,2,63,5],[64,0,64,6],[65,0,65,6],[66,0,66,1],[66,3,66,5],[67,2,67,5],[68,0,68,1],[57,0,57,6],[58,0,58,6],[59,0,59,6],[61,0,61,6],[56,0,56,6],[45,2,45,6],[46,2,46,6],[47,2,47,6],[48,2,48,6],[49,2,49,6],[44,2,44,6],[32,0,32,1],[33,0,33,1],[35,0,35,1],[36,2,36,6],[37,2,37,6],[38,2,38,6],[39,2,39,6],[40,2,40,6],[41,2,41,6],[50,2,50,6],[52,2,52,6],[53,2,53,6],[54,2,54,6],[55,2,55,6],[51,2,51,6],[19,0,20,1],[19,2,19,3],[20,2,20,3],[21,0,21,3],[23,0,23,5],[25,6,26,6],[42,2,42,6],[43,2,43,6],[29,0,29,2],[29,4,30,6],[30,0,30,2],[31,0,31,1],[24,1,26,1],[24,2,24,3],[25,2,26,2],[25,3,26,3],[25,4,26,4],[24,4,24,6],[0,0,0,1],[1,0,1,1],[2,0,2,1],[14,0,16,5],[18,0,18,1],[18,2,18,3]]}
["Публічне акціонерне товариство \"ТАСКОМБанк\"  "]
["Україна, 01032, м. Київ, вул. С. Петлюри, 30,"]
["безкоштовний телефон: 0 (800) 503 580"]
[null,"Інформація (довідка) про кредит _____________________________:"]
[null,"Розмір кредиту:"]
[null,"Вартість товару (послуги):",null,"грн."]
[null,"Сума на поточні потреби",null,"грн."]
[null,"Сума авансу:",null,"грн."]
[null,"Страховий платiж:",null,"грн."]
[null,"Пенсійний внесок:",null,"грн."]
[null,"Плата за надання кредиту:",null,"грн."]
[null,"Сума договору:",null,"грн."]
[null,"Страхова сума:",null,"грн."]
[]
["Розмір кредиту визначається, як сума вартості товару (послуги) та сума на поточні потреби (за наявності) за мінусом авансового внеску клієнта, а також за рахунок кредиту сплачується страховий платіж  та/або пенсійний внесок та/або плата за надання кредиту. Сума договору і є розміром кредиту, який надається клієнту. Страхова сума це сума, яка є базою для розрахунку страхового платежу. Страхування та сплата пенсійного внеску є окремою послугою, що може надаватись за бажанням клієнта, у тому числі за рахунок кредитних коштів."]
[]
[]
[]
["Internet-banking ТАС 24",null,"-             Сплачуйте за кредитом через Інтернет, а також"]
["https://tas24.ua",null,"-             Поповнюйте депозити"]
[null,null,"-             Здійснюйте платежі"]
["Реєстрація та надання послуг безкоштовні. Детальніше на сайті системи https://tas24.ua"]
[]
["                     Таблиця орієнтовних щомісячних платежів та подорожчання*:"]
["Строк кредиту","Щомісячний платеж, грн","Орієнтовна сукупна вартість кредиту,всього:",null,"в тому числi"]
["(місяців)",null,"у %","у грн.","Сума плати за надання кредиту, грн.","Сума плати за користування кредитом","Сума плати за обслуговування кредитної заборгованості, грн."]
[null,null,null,null,null,"(процентів), грн."]
[]
[]
["Переваги кредитування в рамках даного кредитного продукту:",null,null,null,"Вадами кредитування в рамках даного кредитного продукту є подорожчання товару/послуги"]
["·Оптимізація власного бюджету, за рахунок стабільних платежів"]
["·Моментальне отримання товару"]
["·Низька відсоткова ставка"]
["·Зменшення переплати при достроковому погашенні."]
[]
["Умови кредитування:"]
[null,"Назва кредитного продукту:"]
[null,"Валюта кредиту:","Гривня"]
[null,"Форма кредиту:","Споживчий кредит"]
[null,"Мета кредиту:","Кредит надається: \nбезготівково на оплату товарів чи послуг та оплату супутніх послуг, які пов’язані з отриманням, обслуговуванням і погашенням кредиту, \nна власні потреби готівкою або шляхом перерахування на поточний рахунок позичальника. "]
[null,"Тип процентної ставки","Фіксована/Плаваюча"]
[null,"Плата за користування кредитом (проценти):","______% річних.  \nперші «X» місяців процентна ставка встановлюється на рівні «R»% річних; починаючи з «X1»го місяця користування кредитом процентна ставка встановлюється на рівні «R1»% річних; починаючи з «X2»го місяця користування кредитом процентна ставка встановлюється на рівні «R2»% річних\" \nБанк має право змінювати процентну ставку за кредитом в разі настання події, незалежної від волі сторін Кредитного договору, яка має безпосередній вплив на вартість кредитних ресурсів Банку. В усіх інших випадках процента ставка та вартість супутніх послуг за кредитом змінюється за погодженням між сторонами Кредитного договору згідно з умовами, передбаченими у такому Кредитному договорі."]
[null,"Страховий тариф:","_______ %/ _____ грн. "]
[null,"Cтроки кредитування:","від <Computed Value> до <Computed Value> місяців"]
[null,"Cуми кредитування:","від <Computed Value> до <Computed Value> грн."]
[]
[null,"Форма забезпечення:","Застава товару/інше забезпечення (порука)/кошти на власних рахунках/без забезпечення. Оцінка заставного майна не проводиться"]
[null,"Варіанти повернення (погашення) кредиту:","від <Computed Value> до <Computed Value> місяців"]
[null,"Форма (варіанти) погашення кредиту:","Щомісячно рівними (ануїтетними) платежами.\nАнуїтетні платежі  -  регулярні рівні щомісячні платежі, що направляються на погашення кредиту, а саме основного боргу і процентів, що розраховуються таким чином, що в кінці терміну Кредитного договору за умови виконання зобов'язання Позичальником заборгованість повністю погашається.\nКількість платежів, їх частота та обсяги зазначаються у Графіку платежів згідно Кредитного договору, який в обов’язковому порядку надається для ознайомлення споживачу (позичальнику) до укладання ним Кредитного договору.    \nДаним кредитним продуктом не передбачено інших форм кредитування."]
[null,"Дострокове погашення:","Можливе часткове або повне дострокове погашення кредиту на умовах відсутності штрафних санкцій за вчинення таких дій позичальником"]
[null,"Остаточне погашення:","В кінці строку, вказаного в Кредитному договорі"]
[null,"Податковий режим сплати процентів та державні субсидії","По даному кредитному продукту податкові знижки відсутні, державні субсидії не передбачені"]
[null,"Супутні послуги:"]
[null,"Плата за обслуговування кредитної заборгованості:","_______ щомісячно від суми кредиту\nДана комісія розраховується як процент від суми кредиту, сплачується щомісячно у гривнях у складі ануїтетних платежів. Дана послуга включає в себе розрахунок та надання Позичальнику інформації про стан його заборгованості по кредиту (у вигляді sms-повідомлень, телефонного інформування), інформування про виникнення простроченої заборгованості, формування та надання виписок по рахунку, на якому обліковується кредитна заборгованість, надання консультацій щодо умов строкового та/або дострокового погашення кредитної заборгованості, у тому числі щодо умов дострокового погашення кредитної заборгованості  за декілька періодів, щодо каналів та строків погашення існуючої кредитної заборгованості, зміни умов погашення кредитної заборгованості, встановлення «кредитних канікул», відміни/перегляду розміру штрафних санкцій тощо.\n"]
[null,"Плата за надання кредиту:","___ грн./одноразова комісія, що складає <Computed Value> від суми наданого кредиту. \nДана послуга включає в себе надання послуг з підбору кредитного продукту та умов кредитування, роз’яснення умов кредитування, прийом та аналіз документів, необхідних для оформлення кредиту, консультування щодо умов, каналів, строків погашення кредитної заборгованості, можливості зміни умов погашення кредитної заборгованості тощо."]
[]
["Обов'язкові документи:"]
["1. Паспорт громадянина України"]
["2. Довідка про присвоєння ідентифікаційного номера платника податків (картка платника податків)"]
["В окремих випадках Банк залишає за собою право вимагати інші документи, необхідні для визначення платоспроможності позичальника та які є необхідними для надання споживчого кредиту. "]
[]
["З підписанням цієї Інформації (довідки) про кредит позичальник засвідчує, що перед укладанням Кредитного договору він ознайомлений з інформацією про  умови кредитування, а також повідомлений про орієнтовну сукупну вартість кредиту і ці умови є зрозумілими."]
["_________________________________",null,null,"______________________"]
[null,"Позичальник","Уповноважена особа ПАТ \"ТАСКОМБанк\""]
["Ця Інформація (довідка) про кредит у разі укладання Кредитного договору №____________________ від______________20___р.** вважається (і) його невід’ємною частиною та (іі) детальним розписом сукупної вартості кредиту з урахуванням процентної ставки за ним, вартості супутніх послуг, а також інших фінансових зобов’язань споживача у розумінні"]
["п.3.1. та 3.4. Постанови Правління Національного банку України від 10.05.07р. №168 «Про затвердження Правил надання банками України інформації споживачу про умови кредитування та сукупну вартість кредиту»."]
["_________________________________",null,null,"______________________"]
[null,"Позичальник","Уповноважена особа ПАТ \"ТАСКОМБанк\""]
["_ _ _ _ _ _ _ _ _ _ _ _ _ _ _"]
["*Таблиця орієнтованих щомісячних платежів та подорожчання відображає суму щомісячного погашення кредиту в залежності від вибраного Вами строку кредитування. Таблиця НЕ Є графіком погашення. Графік погашення та чітка сума щомісячного платежу зазначені у Кредитному договорі."]
["**У разі фактичного укладання Кредитного договору його номер та дата вписується уповноваженою особою ПАТ \"ТАСКОМБанк\", на підтвердження чого Позичальник та уповноважена особа ПАТ \"ТАСКОМБанк\" ставлять нижче свої підписи. "]

{"sheet":"Калькулятор","index":1,"n_rows":163,"n_cols":34,"rows_kept":163,"cut":false,"hidden":false,"merged":[[162,0,162,18],[31,0,35,0],[31,2,35,2],[32,4,35,4],[32,5,35,5],[32,6,32,16],[33,10,34,11],[33,6,34,9],[0,0,0,18],[1,6,1,8],[31,1,35,1],[31,3,35,3],[31,4,31,16],[3,1,3,3],[6,1,6,3],[8,1,8,3],[4,1,4,3],[19,5,19,9],[31,17,35,17],[31,18,35,18],[30,15,30,18],[33,12,34,15],[30,0,30,14],[10,5,10,9],[9,1,9,9],[18,4,18,9],[14,5,14,9],[17,5,17,9],[16,5,16,9],[12,5,12,9],[26,1,26,5],[26,6,26,8],[27,6,27,8],[27,1,27,5],[28,1,28,5],[28,6,28,8],[1,1,1,4],[5,1,5,3],[3,6,6,8],[24,1,24,8],[25,1,25,5],[25,6,25,8],[13,5,13,9]]}
[]
[null,"КРЕДИТ ФІЗИЧНІЙ ОСОБІ ПІД ДЕПОЗИТ",null,null,null,"кредит","Класична схема",null,null,null,null,null,null,null,null,null,"Ануїтетна схема",{"$f":"IF(G2=Q3,1,2)","v":1}]
[null,"Умови:",null,null,null,null,null,null,null,null,null,null,null,null,null,null,"Класична схема",null,null,null,null,null,null,null,null,null,null,null,null,null,null,null,null,"ЧП \"Актив Плюс\""]
[null,"Дата надання кредиту:  ",null,null,"2023-04-01",null,"Заповніть дані, зазначені червоним кольором",null,null,null,null,null,null,null,null,null,null,null,null,null,null,null,null,null,null,null,null,null,null,null,null,null,"Кредит «Вперед к мечте»","ВАТ \"АКО-Експерт\""]
[null,"Сума фінансування:  ",null,null,50000,"гривень",null,null,null,null,null,null,null,null,null,null,null,null,null,null,null,null,null,null,null,null,null,null,null,null,null,null,"Кредит на покупку недвижимости","ПП \"Вітал-Профі\""]
[null,"Вартість майнових прав на депозит:  ",null,null,500000,"гривень"]
[null,"Термін користування кредитом:  ",null,null,10,"міс.",null,null,null,null,null,null,null,null,null,null,null,null,null,null,null,null,null,null,null,null,null,null,null,null,null,null,"Кредит под залог недвижимости","ВАТ \"Кредитне Брокерське Агенство\""]
[null,null,null,null,null,null,null,null,null,null,null,null,null,null,null,null,null,null,null,null,null,null,null,null,null,null,null,null,null,null,null,null,"Кредит на навчання","ВАТ \"Вектор оцінки\""]
[null,"Номінальна процентна ставка: ",null,null,0.185,"річних",null,null,null,null,null,null,null,null,null,null,null,null,null,null,null,null,null,null,null,null,null,null,null,null,null,null,"Кредит на купівлю автомобіля, що був у використанні"]
[null,"Платежі за додаткові та/або супутні послуги",null,null,null,null,null,null,null,null,null,null,null,null,null,null,null,null,null,null,null,null,null,null,null,null,null,null,null,null,null,null,"Овердрафт для держателей зарплатных карт"]
[null,"комісія за надання кредиту: ",null,null,5.0000000000000001E-3,"від основної суми фінансування;",null,null,null,null,null,null,null,null,{"$f":"E11*E5","v":250},null,null,null,null,null,null,null,null,null,null,null,null,null,null,null,null,null,"Кредитная карта VIP"]
[null,"обслуговування кредитної заборгованості: ",null,null,0,"на місяць від основної суми фінансування;",null,null,null,null,null,null,null,null,{"$f":"E12*E5","v":0},null,null,null,null,null,null,null,null,null,null,null,null,null,null,null,null,null,"Овердрафт GOLD"]
[null,"платіжне обслуговування:  ",null,null,0,"від основної суми фінансування;",null,null,null,null,null,null,null,null,{"$f":"$E$13*$O$5","v":0},null,null,null,null,null,null,null,null,null,null,null,null,null,null,null,null,null,"Кеш-кредит \"Зручна готівка\" із послугою страхування"]
[null,"інші послуги банку: комісія за супроводження кредиту",null,null,1.4999999999999999E-2,"від основної суми фінансування;",null,null,null,null,null,null,null,null,{"$f":"E14*E5","v":750}]
[null,"страхування:",null,null,0,"на рік від основної суми фінансування (життя);",null,null,null,null,null,null,null,null,{"$f":"E15*E5","v":0},null,null,null,null,null,null,null,null,null,null,null,null,null,null,null,null,null,"Кеш-кредит \"Зручна готівка\" без послуги страхування"]
[null,null,null,null,null,"на рік від оціночної вартості майна (страхування майна);",null,null,null,null,null,null,null,null,{"$f":"E16*O4","v":0},null,null,null,null,null,null,null,null,null,null,null,null,null,null,null,null,null,"Лізинг нерухомості"]
[null,"послуги посередника:",null,null,null,"сума, грн (одноразово);",null,null,null,null,null,null,null,null,null,null,null,null,null,null,null,null,null,null,null,null,null,null,null,null,null,null,"Кредит \"Легкий\""]
[null,"послуги нотаріуса: ",null,null,null,"сума, грн (одноразово);",null,null,null,null,null,null,null,null,null,null,null,null,null,null,null,null,null,null,null,null,null,null,null,null,null,null,"Кредит \"Автосалон\""]
[null,"Найменування оцінника:"]
[null,"вартість послуг оцінника:",null,null,null,"сума, грн (одноразово).",null,null,null,null,null,null,null,null,null,null,null,null,null,null,null,null,null,null,null,null,null,null,null,null,null,null,"кредит"]
[null,"Інші послуги третіх осіб:"]
[null,"збір на обов'язкове державне пенсійне страхування",null,null,null,"сума, грн (одноразово);"]
[null,"адміністративні збори",null,null,null,"сума, грн (одноразово)"]
[]
[null,"Орієнтовні розрахункові параметри:"]
[null,"Загальна сума кредиту:",null,null,null,null,{"$f":"E5","v":50000}]
[null,"Орієнтовна загальна вартість кредиту:",null,null,null,null,{"$f":"S159","v":55239.583333333336}]
[null,"Орієнтовні загальні витрати за кредитом:",null,null,null,null,{"$f":"G27-G26","v":5239.5833333333358}]
[null,"Орієнтовна реальна річна процентна ставка:",null,null,null,null,{"$f":"R159","v":0.25740455985069277}]
[]
["Таблиця обчислення загальної вартості кредиту для споживача та реальної річної процентної ставки за договором про споживчий кредит ",null,null,null,null,null,null,null,null,null,null,null,null,null,null,{"$f":"G2","v":"Класична схема"},null,null,null,null,null,null,null,null,null,null,null,null,null,null,null,null,"кредитна лінія"]
["№ з/п","Дата видачі кредиту/дата платежу","Кількість днів у розрахунковому періоді","Чиста сума кредиту/сума платежу за розрахунковий період,грн","Види платежів за кредитом",null,null,null,null,null,null,null,null,null,null,null,null,"Реальна річна процентна ставка, %","Загальна вартість кредиту, грн.",null,null,null,null,null,null,null,null,null,null,null,null,null,"овердрафт"]
[null,null,null,null,"Сума кредиту за договором","Поценти за користування кредитом","платежі за додаткові та/або супутні послуги",null,null,null,null,null,null,null,null,null,null,null,null,null,null,null,null,null,null,null,null,null,null,null,null,null,"лізинг"]
[null,null,null,null,null,null,"банку",null,null,null,"кредитного посередника (за наявності)",null,"третіх осіб"]
[]
[null,null,null,null,null,null,"за обслуговування кредитної заборгова ності","розрахунково-касове обслугову-вання","комісія за надання кредиту"," інші послуги банку:\nкомісія за супроводження кредиту*              (* стягується за перший місяць кредитування)\n","комісійний збір","інша плата за послуги кредитного посередника","послуги нотаріуса","послуги оцінювача","послуги страховика","інші послуги третіх осіб (збір на обов'язкове держ. пенс. страхув. + адміністрат. збори) "]
[1,2,3,4,5,6,"7","8","9","10","11","12","13","14","15","16","6.3",17,18]
[null,{"$f":"E4","v":"2023-04-01"},"х",{"$f":"E38+SUM(G38:P38)","v":-49000},{"$f":"E5*(-1)","v":-50000},null,null,{"$f":"O13","v":0},{"$f":"E5*E11","v":250},{"$f":"O14","v":750},{"$f":"E17","v":0},null,{"$f":"E18","v":0},{"$f":"E20","v":0},0,{"$f":"E23+E22","v":0},null,"х","х"]
[1,{"$f":"DATE(YEAR(B38),MONTH(B38)+1,1)","v":"2023-05-01"},{"$f":"B39-B38","v":30},{"$f":"SUM(E39:Q39)","v":5770.833333333333},{"$f":"IF(A39>$E$7,0,IF($R$2=2,PPMT($E$9/12,A39,$E$7,$E$38),$E$5/$E$7))","v":5000},{"$f":"IF(A39<=$E$7,-SUM(E$38)*$E$9/360*C39,0)","v":770.83333333333326},{"$f":"IF(A39>$E$7,0,$E$5*$E$12)","v":0},null,null,null,null,null,null,null,{"$f":"IF(A39=$E$7,\"\",IF(AND(U39>1,V39=0),$O$16+U39*$E$15,\" \"))","v":" "},null,null,"х","х",null,{"$f":"E5","v":50000},{"$f":"MOD(A39,12)","v":1}]
[2,{"$f":"DATE(YEAR(B39),MONTH(B39)+1,1)","v":"2023-06-01"},{"$f":"B40-B39","v":31},{"$f":"SUM(E40:Q40)","v":5693.75},5000,{"$f":"IF(A40>$E$7,0,IF($R$2=2,IPMT($E$9/12,A40,$E$7,$E$38),((($E$5-SUM($E$39:E39))*$E$9/12))))","v":693.75},0,null,null,null,null,null,null,null," ",null,null,"х","х",null,{"$f":"U39-E39","v":45000},2]
[3,"2023-07-01",30,5616.666666666667,5000,{"$f":"IF(A41>$E$7,0,IF($R$2=2,IPMT($E$9/12,A41,$E$7,$E$38),((($E$5-SUM($E$39:E40))*$E$9/12))))","v":616.66666666666663},0,null,null,null,null,null,null,null," ",null,null,"х","х",null,40000,3]
[4,"2023-08-01",31,5539.583333333333,5000,{"$f":"IF(A42>$E$7,0,IF($R$2=2,IPMT($E$9/12,A42,$E$7,$E$38),((($E$5-SUM($E$39:E41))*$E$9/12))))","v":539.58333333333337},0,null,null,null,null,null,null,null," ",null,null,"х","х",null,35000,4]
[5,"2023-09-01",31,5462.5,5000,{"$f":"IF(A43>$E$7,0,IF($R$2=2,IPMT($E$9/12,A43,$E$7,$E$38),((($E$5-SUM($E$39:E42))*$E$9/12))))","v":462.5},0,null,null,null,null,null,null,null," ",null,null,"х","х",null,30000,5]
[6,"2023-10-01",30,5385.416666666667,5000,{"$f":"IF(A44>$E$7,0,IF($R$2=2,IPMT($E$9/12,A44,$E$7,$E$38),((($E$5-SUM($E$39:E43))*$E$9/12))))","v":385.41666666666669},0,null,null,null,null,null,null,null," ",null,null,"х","х",null,25000,6]
[7,"2023-11-01",31,5308.333333333333,5000,{"$f":"IF(A45>$E$7,0,IF($R$2=2,IPMT($E$9/12,A45,$E$7,$E$38),((($E$5-SUM($E$39:E44))*$E$9/12))))","v":308.33333333333331},0,null,null,null,null,null,null,null," ",null,null,"х","х",null,20000,7]
[8,"2023-12-01",30,5231.25,5000,{"$f":"IF(A46>$E$7,0,IF($R$2=2,IPMT($E$9/12,A46,$E$7,$E$38),((($E$5-SUM($E$39:E45))*$E$9/12))))","v":231.25},0,null,null,null,null,null,null,null," ",null,null,"х","х",null,15000,8]
[9,"2024-01-01",31,5154.166666666667,5000,{"$f":"IF(A47>$E$7,0,IF($R$2=2,IPMT($E$9/12,A47,$E$7,$E$38),((($E$5-SUM($E$39:E46))*$E$9/12))))","v":154.16666666666666},0,null,null,null,null,null,null,null," ",null,null,"х","х",null,10000,9]
[10,"2024-02-01",31,5077.083333333333,5000,{"$f":"IF(A48>$E$7,0,IF($R$2=2,IPMT($E$9/12,A48,$E$7,$E$38),((($E$5-SUM($E$39:E47))*$E$9/12))))","v":77.083333333333329},0,null,null,null,null,null,null,null,"",null,null,"х","х",null,5000,10]
[11,"2024-03-01",29,0,0,{"$f":"IF(A49>$E$7,0,IF($R$2=2,IPMT($E$9/12,A49,$E$7,$E$38),((($E$5-SUM($E$39:E48))*$E$9/12))))","v":0},0,null,null,null,null,null,null,null," ",null,null,"х","х",null,0,11]
[12,"2024-04-01",31,0,0,{"$f":"IF(A50>$E$7,0,IF($R$2=2,IPMT($E$9/12,A50,$E$7,$E$38),((($E$5-SUM($E$39:E49))*$E$9/12))))","v":0},0,null,null,null,null,null,null,null,null,null,null,"х","х",null,0,0]
[13,"2024-05-01",30,0,0,{"$f":"IF(A51>$E$7,0,IF($R$2=2,IPMT($E$9/12,A51,$E$7,$E$38),((($E$5-SUM($E$39:E50))*$E$9/12))))","v":0},0,null,null,null,null,null,null,null,{"$f":"IF(A51=$E$7,\"\",IF(AND(U51>1,V51=0),$O$16+U51*$E$15,\" \"))","v":" "},null,null,"х","х",null,0,1]
[14,"2024-06-01",31,0,0,{"$f":"IF(A52>$E$7,0,IF($R$2=2,IPMT($E$9/12,A52,$E$7,$E$38),((($E$5-SUM($E$39:E51))*$E$9/12))))","v":0},0,null,null,null,null,null,null,null," ",null,null,"х","х",null,0,2]
[15,"2024-07-01",30,0,0,{"$f":"IF(A53>$E$7,0,IF($R$2=2,IPMT($E$9/12,A53,$E$7,$E$38),((($E$5-SUM($E$39:E52))*$E$9/12))))","v":0},0,null,null,null,null,null,null,null," ",null,null,"х","х",null,0,3]
[16,"2024-08-01",31,0,0,{"$f":"IF(A54>$E$7,0,IF($R$2=2,IPMT($E$9/12,A54,$E$7,$E$38),((($E$5-SUM($E$39:E53))*$E$9/12))))","v":0},0,null,null,null,null,null,null,null," ",null,null,"х","х",null,0,4]
[17,"2024-09-01",31,0,0,{"$f":"IF(A55>$E$7,0,IF($R$2=2,IPMT($E$9/12,A55,$E$7,$E$38),((($E$5-SUM($E$39:E54))*$E$9/12))))","v":0},0,null,null,null,null,null,null,null," ",null,null,"х","х",null,0,5]
[18,"2024-10-01",30,0,0,{"$f":"IF(A56>$E$7,0,IF($R$2=2,IPMT($E$9/12,A56,$E$7,$E$38),((($E$5-SUM($E$39:E55))*$E$9/12))))","v":0},0,null,null,null,null,null,null,null," ",null,null,"х","х",null,0,6]
[19,"2024-11-01",31,0,0,{"$f":"IF(A57>$E$7,0,IF($R$2=2,IPMT($E$9/12,A57,$E$7,$E$38),((($E$5-SUM($E$39:E56))*$E$9/12))))","v":0},0,null,null,null,null,null,null,null," ",null,null,"х","х",null,0,7]
[20,"2024-12-01",30,0,0,{"$f":"IF(A58>$E$7,0,IF($R$2=2,IPMT($E$9/12,A58,$E$7,$E$38),((($E$5-SUM($E$39:E57))*$E$9/12))))","v":0},0,null,null,null,null,null,null,null," ",null,null,"х","х",null,0,8]
[21,"2025-01-01",31,0,0,{"$f":"IF(A59>$E$7,0,IF($R$2=2,IPMT($E$9/12,A59,$E$7,$E$38),((($E$5-SUM($E$39:E58))*$E$9/12))))","v":0},0,null,null,null,null,null,null,null," ",null,null,"х","х",null,0,9]
[22,"2025-02-01",31,0,0,{"$f":"IF(A60>$E$7,0,IF($R$2=2,IPMT($E$9/12,A60,$E$7,$E$38),((($E$5-SUM($E$39:E59))*$E$9/12))))","v":0},0,null,null,null,null,null,null,null," ",null,null,"х","х",null,0,10]
[23,"2025-03-01",28,0,0,{"$f":"IF(A61>$E$7,0,IF($R$2=2,IPMT($E$9/12,A61,$E$7,$E$38),((($E$5-SUM($E$39:E60))*$E$9/12))))","v":0},0,null,null,null,null,null,null,null," ",null,null,"х","х",null,0,11]
[24,"2025-04-01",31,0,0,{"$f":"IF(A62>$E$7,0,IF($R$2=2,IPMT($E$9/12,A62,$E$7,$E$38),((($E$5-SUM($E$39:E61))*$E$9/12))))","v":0},0,null,null,null,null,null,null,null,null,null,null,"х","х",null,0,0]
[25,"2025-05-01",30,0,0,{"$f":"IF(A63>$E$7,0,IF($R$2=2,IPMT($E$9/12,A63,$E$7,$E$38),((($E$5-SUM($E$39:E62))*$E$9/12))))","v":0},0,null,null,null,null,null,null,null,{"$f":"IF(A63=$E$7,\"\",IF(AND(U63>1,V63=0),$O$16+U63*$E$15,\" \"))","v":" "},null,null,"х","х",null,0,1]
[26,"2025-06-01",31,0,0,{"$f":"IF(A64>$E$7,0,IF($R$2=2,IPMT($E$9/12,A64,$E$7,$E$38),((($E$5-SUM($E$39:E63))*$E$9/12))))","v":0},0,null,null,null,null,null,null,null," ",null,null,"х","х",null,0,2]
[27,"2025-07-01",30,0,0,{"$f":"IF(A65>$E$7,0,IF($R$2=2,IPMT($E$9/12,A65,$E$7,$E$38),((($E$5-SUM($E$39:E64))*$E$9/12))))","v":0},0,null,null,null,null,null,null,null," ",null,null,"х","х",null,0,3]
[28,"2025-08-01",31,0,0,{"$f":"IF(A66>$E$7,0,IF($R$2=2,IPMT($E$9/12,A66,$E$7,$E$38),((($E$5-SUM($E$39:E65))*$E$9/12))))","v":0},0,null,null,null,null,null,null,null," ",null,null,"х","х",null,0,4]
[29,"2025-09-01",31,0,0,{"$f":"IF(A67>$E$7,0,IF($R$2=2,IPMT($E$9/12,A67,$E$7,$E$38),((($E$5-SUM($E$39:E66))*$E$9/12))))","v":0},0,null,null,null,null,null,null,null," ",null,null,"х","х",null,0,5]
[30,"2025-10-01",30,0,0,{"$f":"IF(A68>$E$7,0,IF($R$2=2,IPMT($E$9/12,A68,$E$7,$E$38),((($E$5-SUM($E$39:E67))*$E$9/12))))","v":0},0,null,null,null,null,null,null,null," ",null,null,"х","х",null,0,6]
[31,"2025-11-01",31,0,0,{"$f":"IF(A69>$E$7,0,IF($R$2=2,IPMT($E$9/12,A69,$E$7,$E$38),((($E$5-SUM($E$39:E68))*$E$9/12))))","v":0},0,null,null,null,null,null,null,null," ",null,null,"х","х",null,0,7]
[32,"2025-12-01",30,0,0,{"$f":"IF(A70>$E$7,0,IF($R$2=2,IPMT($E$9/12,A70,$E$7,$E$38),((($E$5-SUM($E$39:E69))*$E$9/12))))","v":0},0,null,null,null,null,null,null,null," ",null,null,"х","х",null,0,8]
[33,"2026-01-01",31,{"$f":"SUM(E71:Q71)","v":0},{"$f":"IF(A71>$E$7,0,IF($R$2=2,PPMT($E$9/12,A71,$E$7,$E$38),$E$5/$E$7))","v":0},{"$f":"IF(A71>$E$7,0,IF($R$2=2,IPMT($E$9/12,A71,$E$7,$E$38),((($E$5-SUM($E$39:E70))*$E$9/12))))","v":0},{"$f":"IF(A71>$E$7,0,$E$5*$E$12)","v":0},null,null,null,null,null,null,null," ",null,null,"х","х",null,0,{"$f":"MOD(A71,12)","v":9}]
[34,"2026-02-01",31,0,0,{"$f":"IF(A72>$E$7,0,IF($R$2=2,IPMT($E$9/12,A72,$E$7,$E$38),((($E$5-SUM($E$39:E71))*$E$9/12))))","v":0},0,null,null,null,null,null,null,null," ",null,null,"х","х",null,{"$f":"U71-E71","v":0},10]
[35,"2026-03-01",28,0,0,{"$f":"IF(A73>$E$7,0,IF($R$2=2,IPMT($E$9/12,A73,$E$7,$E$38),((($E$5-SUM($E$39:E72))*$E$9/12))))","v":0},0,null,null,null,null,null,null,null," ",null,null,"х","х",null,0,11]
[36,"2026-04-01",31,0,0,{"$f":"IF(A74>$E$7,0,IF($R$2=2,IPMT($E$9/12,A74,$E$7,$E$38),((($E$5-SUM($E$39:E73))*$E$9/12))))","v":0},0,null,null,null,null,null,null,null,null,null,null,"х","х",null,0,0]
[37,"2026-05-01",30,0,0,{"$f":"IF(A75>$E$7,0,IF($R$2=2,IPMT($E$9/12,A75,$E$7,$E$38),((($E$5-SUM($E$39:E74))*$E$9/12))))","v":0},0,null,null,null,null,null,null,null,{"$f":"IF(A75=$E$7,\"\",IF(AND(U75>1,V75=0),$O$16+U75*$E$15,\" \"))","v":" "},null,null,"х","х",null,0,1]
[38,"2026-06-01",31,0,0,{"$f":"IF(A76>$E$7,0,IF($R$2=2,IPMT($E$9/12,A76,$E$7,$E$38),((($E$5-SUM($E$39:E75))*$E$9/12))))","v":0},0,null,null,null,null,null,null,null," ",null,null,"х","х",null,0,2]
[39,"2026-07-01",30,0,0,{"$f":"IF(A77>$E$7,0,IF($R$2=2,IPMT($E$9/12,A77,$E$7,$E$38),((($E$5-SUM($E$39:E76))*$E$9/12))))","v":0},0,null,null,null,null,null,null,null," ",null,null,"х","х",null,0,3]
[40,"2026-08-01",31,0,0,{"$f":"IF(A78>$E$7,0,IF($R$2=2,IPMT($E$9/12,A78,$E$7,$E$38),((($E$5-SUM($E$39:E77))*$E$9/12))))","v":0},0,null,null,null,null,null,null,null," ",null,null,"х","х",null,0,4]
[41,"2026-09-01",31,0,0,{"$f":"IF(A79>$E$7,0,IF($R$2=2,IPMT($E$9/12,A79,$E$7,$E$38),((($E$5-SUM($E$39:E78))*$E$9/12))))","v":0},0,null,null,null,null,null,null,null," ",null,null,"х","х",null,0,5]
[42,"2026-10-01",30,0,0,{"$f":"IF(A80>$E$7,0,IF($R$2=2,IPMT($E$9/12,A80,$E$7,$E$38),((($E$5-SUM($E$39:E79))*$E$9/12))))","v":0},0,null,null,null,null,null,null,null," ",null,null,"х","х",null,0,6]
[43,"2026-11-01",31,0,0,{"$f":"IF(A81>$E$7,0,IF($R$2=2,IPMT($E$9/12,A81,$E$7,$E$38),((($E$5-SUM($E$39:E80))*$E$9/12))))","v":0},0,null,null,null,null,null,null,null," ",null,null,"х","х",null,0,7]
[44,"2026-12-01",30,0,0,{"$f":"IF(A82>$E$7,0,IF($R$2=2,IPMT($E$9/12,A82,$E$7,$E$38),((($E$5-SUM($E$39:E81))*$E$9/12))))","v":0},0,null,null,null,null,null,null,null," ",null,null,"х","х",null,0,8]
[45,"2027-01-01",31,0,0,{"$f":"IF(A83>$E$7,0,IF($R$2=2,IPMT($E$9/12,A83,$E$7,$E$38),((($E$5-SUM($E$39:E82))*$E$9/12))))","v":0},0,null,null,null,null,null,null,null," ",null,null,"х","х",null,0,9]
[46,"2027-02-01",31,0,0,{"$f":"IF(A84>$E$7,0,IF($R$2=2,IPMT($E$9/12,A84,$E$7,$E$38),((($E$5-SUM($E$39:E83))*$E$9/12))))","v":0},0,null,null,null,null,null,null,null," ",null,null,"х","х",null,0,10]
[47,"2027-03-01",28,0,0,{"$f":"IF(A85>$E$7,0,IF($R$2=2,IPMT($E$9/12,A85,$E$7,$E$38),((($E$5-SUM($E$39:E84))*$E$9/12))))","v":0},0,null,null,null,null,null,null,null," ",null,null,"х","х",null,0,11]
[48,"2027-04-01",31,0,0,{"$f":"IF(A86>$E$7,0,IF($R$2=2,IPMT($E$9/12,A86,$E$7,$E$38),((($E$5-SUM($E$39:E85))*$E$9/12))))","v":0},0,null,null,null,null,null,null,null,null,null,null,"х","х",null,0,0]
[49,"2027-05-01",30,0,0,{"$f":"IF(A87>$E$7,0,IF($R$2=2,IPMT($E$9/12,A87,$E$7,$E$38),((($E$5-SUM($E$39:E86))*$E$9/12))))","v":0},0,null,null,null,null,null,null,null,{"$f":"IF(A87=$E$7,\"\",IF(AND(U87>1,V87=0),$O$16+U87*$E$15,\" \"))","v":" "},null,null,"х","х",null,0,1]
[50,"2027-06-01",31,0,0,{"$f":"IF(A88>$E$7,0,IF($R$2=2,IPMT($E$9/12,A88,$E$7,$E$38),((($E$5-SUM($E$39:E87))*$E$9/12))))","v":0},0,null,null,null,null,null,null,null," ",null,null,"х","х",null,0,2]
[51,"2027-07-01",30,0,0,{"$f":"IF(A89>$E$7,0,IF($R$2=2,IPMT($E$9/12,A89,$E$7,$E$38),((($E$5-SUM($E$39:E88))*$E$9/12))))","v":0},0,null,null,null,null,null,null,null," ",null,null,"х","х",null,0,3]
[52,"2027-08-01",31,0,0,{"$f":"IF(A90>$E$7,0,IF($R$2=2,IPMT($E$9/12,A90,$E$7,$E$38),((($E$5-SUM($E$39:E89))*$E$9/12))))","v":0},0,null,null,null,null,null,null,null," ",null,null,"х","х",null,0,4]
[53,"2027-09-01",31,0,0,{"$f":"IF(A91>$E$7,0,IF($R$2=2,IPMT($E$9/12,A91,$E$7,$E$38),((($E$5-SUM($E$39:E90))*$E$9/12))))","v":0},0,null,null,null,null,null,null,null," ",null,null,"х","х",null,0,5]
[54,"2027-10-01",30,0,0,{"$f":"IF(A92>$E$7,0,IF($R$2=2,IPMT($E$9/12,A92,$E$7,$E$38),((($E$5-SUM($E$39:E91))*$E$9/12))))","v":0},0,null,null,null,null,null,null,null," ",null,null,"х","х",null,0,6]
[55,"2027-11-01",31,0,0,{"$f":"IF(A93>$E$7,0,IF($R$2=2,IPMT($E$9/12,A93,$E$7,$E$38),((($E$5-SUM($E$39:E92))*$E$9/12))))","v":0},0,null,null,null,null,null,null,null," ",null,null,"х","х",null,0,7]
[56,"2027-12-01",30,0,0,{"$f":"IF(A94>$E$7,0,IF($R$2=2,IPMT($E$9/12,A94,$E$7,$E$38),((($E$5-SUM($E$39:E93))*$E$9/12))))","v":0},0,null,null,null,null,null,null,null," ",null,null,"х","х",null,0,8]
[57,"2028-01-01",31,0,0,{"$f":"IF(A95>$E$7,0,IF($R$2=2,IPMT($E$9/12,A95,$E$7,$E$38),((($E$5-SUM($E$39:E94))*$E$9/12))))","v":0},0,null,null,null,null,null,null,null," ",null,null,"х","х",null,0,9]
[58,"2028-02-01",31,0,0,{"$f":"IF(A96>$E$7,0,IF($R$2=2,IPMT($E$9/12,A96,$E$7,$E$38),((($E$5-SUM($E$39:E95))*$E$9/12))))","v":0},0,null,null,null,null,null,null,null," ",null,null,"х","х",null,0,10]
[59,"2028-03-01",29,0,0,{"$f":"IF(A97>$E$7,0,IF($R$2=2,IPMT($E$9/12,A97,$E$7,$E$38),((($E$5-SUM($E$39:E96))*$E$9/12))))","v":0},0,null,null,null,null,null,null,null," ",null,null,"х","х",null,0,11]
[60,"2028-04-01",31,0,0,{"$f":"IF(A98>$E$7,0,IF($R$2=2,IPMT($E$9/12,A98,$E$7,$E$38),((($E$5-SUM($E$39:E97))*$E$9/12))))","v":0},0,null,null,null,null,null,null,null," ",null,null,"х","х",null,0,0]
[61,"2028-05-01",30,0,0,{"$f":"IF(A99>$E$7,0,IF($R$2=2,IPMT($E$9/12,A99,$E$7,$E$38),((($E$5-SUM($E$39:E98))*$E$9/12))))","v":0},0,null,null,null,null,null,null,null," ",null,null,"х","х",null,0,1]
[62,"2028-06-01",31,0,0,{"$f":"IF(A100>$E$7,0,IF($R$2=2,IPMT($E$9/12,A100,$E$7,$E$38),((($E$5-SUM($E$39:E99))*$E$9/12))))","v":0},0,null,null,null,null,null,null,null," ",null,null,"х","х",null,0,2]
[63,"2028-07-01",30,0,0,{"$f":"IF(A101>$E$7,0,IF($R$2=2,IPMT($E$9/12,A101,$E$7,$E$38),((($E$5-SUM($E$39:E100))*$E$9/12))))","v":0},0,null,null,null,null,null,null,null," ",null,null,"х","х",null,0,3]
[64,"2028-08-01",31,0,0,{"$f":"IF(A102>$E$7,0,IF($R$2=2,IPMT($E$9/12,A102,$E$7,$E$38),((($E$5-SUM($E$39:E101))*$E$9/12))))","v":0},0,null,null,null,null,null,null,null," ",null,null,"х","х",null,0,4]
[65,"2028-09-01",31,{"$f":"SUM(E103:Q103)","v":0},{"$f":"IF(A103>$E$7,0,IF($R$2=2,PPMT($E$9/12,A103,$E$7,$E$38),$E$5/$E$7))","v":0},{"$f":"IF(A103>$E$7,0,IF($R$2=2,IPMT($E$9/12,A103,$E$7,$E$38),((($E$5-SUM($E$39:E102))*$E$9/12))))","v":0},{"$f":"IF(A103>$E$7,0,$E$5*$E$12)","v":0},null,null,null,null,null,null,null," ",null,null,"х","х",null,0,{"$f":"MOD(A103,12)","v":5}]
[66,{"$f":"DATE(YEAR(B103),MONTH(B103)+1,1)","v":"2028-10-01"},{"$f":"B104-B103","v":30},0,0,{"$f":"IF(A104>$E$7,0,IF($R$2=2,IPMT($E$9/12,A104,$E$7,$E$38),((($E$5-SUM($E$39:E103))*$E$9/12))))","v":0},0,null,null,null,null,null,null,null," ",null,null,"х","х",null,{"$f":"U103-E103","v":0},6]
[67,"2028-11-01",31,0,0,{"$f":"IF(A105>$E$7,0,IF($R$2=2,IPMT($E$9/12,A105,$E$7,$E$38),((($E$5-SUM($E$39:E104))*$E$9/12))))","v":0},0,null,null,null,null,null,null,null," ",null,null,"х","х",null,0,7]
[68,"2028-12-01",30,0,0,{"$f":"IF(A106>$E$7,0,IF($R$2=2,IPMT($E$9/12,A106,$E$7,$E$38),((($E$5-SUM($E$39:E105))*$E$9/12))))","v":0},0,null,null,null,null,null,null,null," ",null,null,"х","х",null,0,8]
[69,"2029-01-01",31,0,0,{"$f":"IF(A107>$E$7,0,IF($R$2=2,IPMT($E$9/12,A107,$E$7,$E$38),((($E$5-SUM($E$39:E106))*$E$9/12))))","v":0},0,null,null,null,null,null,null,null," ",null,null,"х","х",null,0,9]
[70,"2029-02-01",31,0,0,{"$f":"IF(A108>$E$7,0,IF($R$2=2,IPMT($E$9/12,A108,$E$7,$E$38),((($E$5-SUM($E$39:E107))*$E$9/12))))","v":0},0,null,null,null,null,null,null,null," ",null,null,"х","х",null,0,10]
[71,"2029-03-01",28,0,0,{"$f":"IF(A109>$E$7,0,IF($R$2=2,IPMT($E$9/12,A109,$E$7,$E$38),((($E$5-SUM($E$39:E108))*$E$9/12))))","v":0},0,null,null,null,null,null,null,null," ",null,null,"х","х",null,0,11]
[72,"2029-04-01",31,0,0,{"$f":"IF(A110>$E$7,0,IF($R$2=2,IPMT($E$9/12,A110,$E$7,$E$38),((($E$5-SUM($E$39:E109))*$E$9/12))))","v":0},0,null,null,null,null,null,null,null," ",null,null,"х","х",null,0,0]
[73,"2029-05-01",30,0,0,{"$f":"IF(A111>$E$7,0,IF($R$2=2,IPMT($E$9/12,A111,$E$7,$E$38),((($E$5-SUM($E$39:E110))*$E$9/12))))","v":0},0,null,null,null,null,null,null,null," ",null,null,"х","х",null,0,1]
[74,"2029-06-01",31,0,0,{"$f":"IF(A112>$E$7,0,IF($R$2=2,IPMT($E$9/12,A112,$E$7,$E$38),((($E$5-SUM($E$39:E111))*$E$9/12))))","v":0},0,null,null,null,null,null,null,null," ",null,null,"х","х",null,0,2]
[75,"2029-07-01",30,0,0,{"$f":"IF(A113>$E$7,0,IF($R$2=2,IPMT($E$9/12,A113,$E$7,$E$38),((($E$5-SUM($E$39:E112))*$E$9/12))))","v":0},0,null,null,null,null,null,null,null," ",null,null,"х","х",null,0,3]
[76,"2029-08-01",31,0,0,{"$f":"IF(A114>$E$7,0,IF($R$2=2,IPMT($E$9/12,A114,$E$7,$E$38),((($E$5-SUM($E$39:E113))*$E$9/12))))","v":0},0,null,null,null,null,null,null,null," ",null,null,"х","х",null,0,4]
[77,"2029-09-01",31,0,0,{"$f":"IF(A115>$E$7,0,IF($R$2=2,IPMT($E$9/12,A115,$E$7,$E$38),((($E$5-SUM($E$39:E114))*$E$9/12))))","v":0},0,null,null,null,null,null,null,null," ",null,null,"х","х",null,0,5]
[78,"2029-10-01",30,0,0,{"$f":"IF(A116>$E$7,0,IF($R$2=2,IPMT($E$9/12,A116,$E$7,$E$38),((($E$5-SUM($E$39:E115))*$E$9/12))))","v":0},0,null,null,null,null,null,null,null," ",null,null,"х","х",null,0,6]
[79,"2029-11-01",31,0,0,{"$f":"IF(A117>$E$7,0,IF($R$2=2,IPMT($E$9/12,A117,$E$7,$E$38),((($E$5-SUM($E$39:E116))*$E$9/12))))","v":0},0,null,null,null,null,null,null,null," ",null,null,"х","х",null,0,7]
[80,"2029-12-01",30,0,0,{"$f":"IF(A118>$E$7,0,IF($R$2=2,IPMT($E$9/12,A118,$E$7,$E$38),((($E$5-SUM($E$39:E117))*$E$9/12))))","v":0},0,null,null,null,null,null,null,null," ",null,null,"х","х",null,0,8]
[81,"2030-01-01",31,0,0,{"$f":"IF(A119>$E$7,0,IF($R$2=2,IPMT($E$9/12,A119,$E$7,$E$38),((($E$5-SUM($E$39:E118))*$E$9/12))))","v":0},0,null,null,null,null,null,null,null,{"$f":"IF(A119=$E$7,\"\",IF(AND(U119>1,V119=0),$O$16+U119*$E$15,\" \"))","v":" "},null,null,"х","х",null,0,9]
[82,"2030-02-01",31,0,0,{"$f":"IF(A120>$E$7,0,IF($R$2=2,IPMT($E$9/12,A120,$E$7,$E$38),((($E$5-SUM($E$39:E119))*$E$9/12))))","v":0},0,null,null,null,null,null,null,null," ",null,null,"х","х",null,0,10]
[83,"2030-03-01",28,0,0,{"$f":"IF(A121>$E$7,0,IF($R$2=2,IPMT($E$9/12,A121,$E$7,$E$38),((($E$5-SUM($E$39:E120))*$E$9/12))))","v":0},0,null,null,null,null,null,null,null," ",null,null,"х","х",null,0,11]
[84,"2030-04-01",31,0,0,{"$f":"IF(A122>$E$7,0,IF($R$2=2,IPMT($E$9/12,A122,$E$7,$E$38),((($E$5-SUM($E$39:E121))*$E$9/12))))","v":0},0,null,null,null,null,null,null,null," ",null,null,"х","х",null,0,0]
[85,"2030-05-01",30,0,0,{"$f":"IF(A123>$E$7,0,IF($R$2=2,IPMT($E$9/12,A123,$E$7,$E$38),((($E$5-SUM($E$39:E122))*$E$9/12))))","v":0},0,null,null,null,null,null,null,null," ",null,null,"х","х",null,0,1]
[86,"2030-06-01",31,0,0,{"$f":"IF(A124>$E$7,0,IF($R$2=2,IPMT($E$9/12,A124,$E$7,$E$38),((($E$5-SUM($E$39:E123))*$E$9/12))))","v":0},0,null,null,null,null,null,null,null," ",null,null,"х","х",null,0,2]
[87,"2030-07-01",30,0,0,{"$f":"IF(A125>$E$7,0,IF($R$2=2,IPMT($E$9/12,A125,$E$7,$E$38),((($E$5-SUM($E$39:E124))*$E$9/12))))","v":0},0,null,null,null,null,null,null,null," ",null,null,"х","х",null,0,3]
[88,"2030-08-01",31,0,0,{"$f":"IF(A126>$E$7,0,IF($R$2=2,IPMT($E$9/12,A126,$E$7,$E$38),((($E$5-SUM($E$39:E125))*$E$9/12))))","v":0},0,null,null,null,null,null,null,null," ",null,null,"х","х",null,0,4]
[89,"2030-09-01",31,0,0,{"$f":"IF(A127>$E$7,0,IF($R$2=2,IPMT($E$9/12,A127,$E$7,$E$38),((($E$5-SUM($E$39:E126))*$E$9/12))))","v":0},0,null,null,null,null,null,null,null," ",null,null,"х","х",null,0,5]
[90,"2030-10-01",30,0,0,{"$f":"IF(A128>$E$7,0,IF($R$2=2,IPMT($E$9/12,A128,$E$7,$E$38),((($E$5-SUM($E$39:E127))*$E$9/12))))","v":0},0,null,null,null,null,null,null,null," ",null,null,"х","х",null,0,6]
[91,"2030-11-01",31,0,0,{"$f":"IF(A129>$E$7,0,IF($R$2=2,IPMT($E$9/12,A129,$E$7,$E$38),((($E$5-SUM($E$39:E128))*$E$9/12))))","v":0},0,null,null,null,null,null,null,null," ",null,null,"х","х",null,0,7]
[92,"2030-12-01",30,0,0,{"$f":"IF(A130>$E$7,0,IF($R$2=2,IPMT($E$9/12,A130,$E$7,$E$38),((($E$5-SUM($E$39:E129))*$E$9/12))))","v":0},0,null,null,null,null,null,null,null," ",null,null,"х","х",null,0,8]
[93,"2031-01-01",31,0,0,{"$f":"IF(A131>$E$7,0,IF($R$2=2,IPMT($E$9/12,A131,$E$7,$E$38),((($E$5-SUM($E$39:E130))*$E$9/12))))","v":0},0,null,null,null,null,null,null,null," ",null,null,"х","х",null,0,9]
[94,"2031-02-01",31,0,0,{"$f":"IF(A132>$E$7,0,IF($R$2=2,IPMT($E$9/12,A132,$E$7,$E$38),((($E$5-SUM($E$39:E131))*$E$9/12))))","v":0},0,null,null,null,null,null,null,null," ",null,null,"х","х",null,0,10]
[95,"2031-03-01",28,0,0,{"$f":"IF(A133>$E$7,0,IF($R$2=2,IPMT($E$9/12,A133,$E$7,$E$38),((($E$5-SUM($E$39:E132))*$E$9/12))))","v":0},0,null,null,null,null,null,null,null," ",null,null,"х","х",null,0,11]
[96,"2031-04-01",31,0,0,{"$f":"IF(A134>$E$7,0,IF($R$2=2,IPMT($E$9/12,A134,$E$7,$E$38),((($E$5-SUM($E$39:E133))*$E$9/12))))","v":0},0,null,null,null,null,null,null,null," ",null,null,"х","х",null,0,0]
[97,"2031-05-01",30,{"$f":"SUM(E135:Q135)","v":0},{"$f":"IF(A135>$E$7,0,IF($R$2=2,PPMT($E$9/12,A135,$E$7,$E$38),$E$5/$E$7))","v":0},{"$f":"IF(A135>$E$7,0,IF($R$2=2,IPMT($E$9/12,A135,$E$7,$E$38),((($E$5-SUM($E$39:E134))*$E$9/12))))","v":0},{"$f":"IF(A135>$E$7,0,$E$5*$E$12)","v":0},null,null,null,null,null,null,null," ",null,null,"х","х",null,0,{"$f":"MOD(A135,12)","v":1}]
[98,"2031-06-01",31,0,0,{"$f":"IF(A136>$E$7,0,IF($R$2=2,IPMT($E$9/12,A136,$E$7,$E$38),((($E$5-SUM($E$39:E135))*$E$9/12))))","v":0},0,null,null,null,null,null,null,null," ",null,null,"х","х",null,{"$f":"U135-E135","v":0},2]
[99,"2031-07-01",30,0,0,{"$f":"IF(A137>$E$7,0,IF($R$2=2,IPMT($E$9/12,A137,$E$7,$E$38),((($E$5-SUM($E$39:E136))*$E$9/12))))","v":0},0,null,null,null,null,null,null,null," ",null,null,"х","х",null,0,3]
[100,"2031-08-01",31,0,0,{"$f":"IF(A138>$E$7,0,IF($R$2=2,IPMT($E$9/12,A138,$E$7,$E$38),((($E$5-SUM($E$39:E137))*$E$9/12))))","v":0},0,null,null,null,null,null,null,null," ",null,null,"х","х",null,0,4]
[101,"2031-09-01",31,0,0,{"$f":"IF(A139>$E$7,0,IF($R$2=2,IPMT($E$9/12,A139,$E$7,$E$38),((($E$5-SUM($E$39:E138))*$E$9/12))))","v":0},0,null,null,null,null,null,null,null," ",null,null,"х","х",null,0,5]
[102,"2031-10-01",30,0,0,{"$f":"IF(A140>$E$7,0,IF($R$2=2,IPMT($E$9/12,A140,$E$7,$E$38),((($E$5-SUM($E$39:E139))*$E$9/12))))","v":0},0,null,null,null,null,null,null,null," ",null,null,"х","х",null,0,6]
[103,"2031-11-01",31,0,0,{"$f":"IF(A141>$E$7,0,IF($R$2=2,IPMT($E$9/12,A141,$E$7,$E$38),((($E$5-SUM($E$39:E140))*$E$9/12))))","v":0},0,null,null,null,null,null,null,null," ",null,null,"х","х",null,0,7]
[104,"2031-12-01",30,0,0,{"$f":"IF(A142>$E$7,0,IF($R$2=2,IPMT($E$9/12,A142,$E$7,$E$38),((($E$5-SUM($E$39:E141))*$E$9/12))))","v":0},0,null,null,null,null,null,null,null," ",null,null,"х","х",null,0,8]
[105,"2032-01-01",31,0,0,{"$f":"IF(A143>$E$7,0,IF($R$2=2,IPMT($E$9/12,A143,$E$7,$E$38),((($E$5-SUM($E$39:E142))*$E$9/12))))","v":0},0,null,null,null,null,null,null,null," ",null,null,"х","х",null,0,9]
[106,"2032-02-01",31,0,0,{"$f":"IF(A144>$E$7,0,IF($R$2=2,IPMT($E$9/12,A144,$E$7,$E$38),((($E$5-SUM($E$39:E143))*$E$9/12))))","v":0},0,null,null,null,null,null,null,null," ",null,null,"х","х",null,0,10]
[107,"2032-03-01",29,0,0,{"$f":"IF(A145>$E$7,0,IF($R$2=2,IPMT($E$9/12,A145,$E$7,$E$38),((($E$5-SUM($E$39:E144))*$E$9/12))))","v":0},0,null,null,null,null,null,null,null," ",null,null,"х","х",null,0,11]
[108,"2032-04-01",31,0,0,{"$f":"IF(A146>$E$7,0,IF($R$2=2,IPMT($E$9/12,A146,$E$7,$E$38),((($E$5-SUM($E$39:E145))*$E$9/12))))","v":0},0,null,null,null,null,null,null,null," ",null,null,"х","х",null,0,0]
[109,"2032-05-01",30,0,0,{"$f":"IF(A147>$E$7,0,IF($R$2=2,IPMT($E$9/12,A147,$E$7,$E$38),((($E$5-SUM($E$39:E146))*$E$9/12))))","v":0},0,null,null,null,null,null,null,null," ",null,null,"х","х",null,0,1]
[110,"2032-06-01",31,0,0,{"$f":"IF(A148>$E$7,0,IF($R$2=2,IPMT($E$9/12,A148,$E$7,$E$38),((($E$5-SUM($E$39:E147))*$E$9/12))))","v":0},0,null,null,null,null,null,null,null," ",null,null,"х","х",null,0,2]
[111,"2032-07-01",30,0,0,{"$f":"IF(A149>$E$7,0,IF($R$2=2,IPMT($E$9/12,A149,$E$7,$E$38),((($E$5-SUM($E$39:E148))*$E$9/12))))","v":0},0,null,null,null,null,null,null,null," ",null,null,"х","х",null,0,3]
[112,"2032-08-01",31,0,0,{"$f":"IF(A150>$E$7,0,IF($R$2=2,IPMT($E$9/12,A150,$E$7,$E$38),((($E$5-SUM($E$39:E149))*$E$9/12))))","v":0},0,null,null,null,null,null,null,null," ",null,null,"х","х",null,0,4]
[113,"2032-09-01",31,0,0,{"$f":"IF(A151>$E$7,0,IF($R$2=2,IPMT($E$9/12,A151,$E$7,$E$38),((($E$5-SUM($E$39:E150))*$E$9/12))))","v":0},0,null,null,null,null,null,null,null,{"$f":"IF(A151=$E$7,\"\",IF(AND(U151>1,V151=0),$O$16+U151*$E$15,\" \"))","v":" "},null,null,"х","х",null,0,5]
[114,"2032-10-01",30,0,0,{"$f":"IF(A152>$E$7,0,IF($R$2=2,IPMT($E$9/12,A152,$E$7,$E$38),((($E$5-SUM($E$39:E151))*$E$9/12))))","v":0},0,null,null,null,null,null,null,null," ",null,null,"х","х",null,0,6]
[115,"2032-11-01",31,0,0,{"$f":"IF(A153>$E$7,0,IF($R$2=2,IPMT($E$9/12,A153,$E$7,$E$38),((($E$5-SUM($E$39:E152))*$E$9/12))))","v":0},0,null,null,null,null,null,null,null," ",null,null,"х","х",null,0,7]
[116,"2032-12-01",30,0,0,{"$f":"IF(A154>$E$7,0,IF($R$2=2,IPMT($E$9/12,A154,$E$7,$E$38),((($E$5-SUM($E$39:E153))*$E$9/12))))","v":0},0,null,null,null,null,null,null,null," ",null,null,"х","х",null,0,8]
[117,"2033-01-01",31,0,0,{"$f":"IF(A155>$E$7,0,IF($R$2=2,IPMT($E$9/12,A155,$E$7,$E$38),((($E$5-SUM($E$39:E154))*$E$9/12))))","v":0},0,null,null,null,null,null,null,null," ",null,null,"х","х",null,0,9]
[118,"2033-02-01",31,0,0,{"$f":"IF(A156>$E$7,0,IF($R$2=2,IPMT($E$9/12,A156,$E$7,$E$38),((($E$5-SUM($E$39:E155))*$E$9/12))))","v":0},0,null,null,null,null,null,null,null," ",null,null,"х","х",null,0,10]
[119,"2033-03-01",28,0,0,{"$f":"IF(A157>$E$7,0,IF($R$2=2,IPMT($E$9/12,A157,$E$7,$E$38),((($E$5-SUM($E$39:E156))*$E$9/12))))","v":0},0,null,null,null,null,null,null,null," ",null,null,"х","х",null,0,11]
[120,"2033-04-01",31,0,0,{"$f":"IF(A158>$E$7,0,IF($R$2=2,IPMT($E$9/12,A158,$E$7,$E$38),((($E$5-SUM($E$39:E157))*$E$9/12))))","v":0},0,null,null,null,null,null,null,null," ",null,null,"х","х",null,0,0]
["Усього",null,null,null,{"$f":"SUM(E39:E158)","v":50000},4239.583333333333,0,{"$f":"SUM(H38:H158)","v":0},{"$f":"SUM(I38:I158)","v":250},{"$f":"SUM(J38:J158)","v":750},0,0,0,0,0,0,{"$f":"SUM(Q38:Q158)","v":0},{"$f":"XIRR(D38:D158,B38:B158)","v":0.25740455985069277},{"$f":"SUM(E159:P159)","v":55239.583333333336}]
[]
[null,"Один екземпляр Інформації про умови кредитування та орієнтовну сукупну вартість кредиту отримав(ла).",null,null,null,null,null,null,"_______________________",null,null,null,null,null,"____________________",null,"________________________"]
[null,null,null,null,null,null,null,null,"дата",null,null,null,null,null,"підпис",null,"ініціали та прізвище фізичної особи"]
["Примітка: \nобчислення  реальної процентної ставки базується на припущенні, що :\n1)договір про споживчий кредит залишається дійсним протягом погодженого строку та що кредитодавець  і споживач виконають свої обов `язки на умовах та у строки, визначені в договорі;\n2) процентна ставка та інші платежі за послуги кредитодавця  залишатимуться незмінними та застосовуватимуться протягом строку дії договору про споживчий кредит."]

{"sheet":"Додаток 21 \"Форма інформування\"","index":2,"n_rows":81,"n_cols":8,"rows_kept":81,"cut":false,"hidden":true,"merged":[[0,0,0,7],[73,1,73,7],[64,1,64,2],[64,4,64,6],[65,3,65,6],[66,1,66,7],[72,1,72,7],[70,1,70,2],[67,1,67,7],[68,1,68,2],[68,4,68,6],[69,3,69,6],[71,1,71,7],[49,3,49,7],[56,3,56,7],[58,1,58,7],[59,1,59,7],[60,1,60,7],[63,1,63,7],[37,3,37,7],[38,3,38,7],[39,3,39,7],[40,3,40,7],[41,3,41,7],[42,3,42,7],[54,3,54,7],[55,3,55,7],[43,3,43,7],[44,3,44,7],[45,3,45,7],[53,3,53,7],[50,3,50,7],[51,3,51,7],[52,3,52,7],[26,4,27,4],[26,7,27,7],[46,3,46,7],[30,1,30,3],[31,1,31,3],[32,1,32,2],[33,1,33,2],[30,5,31,7],[36,1,36,2],[2,1,2,2],[3,1,3,2],[15,1,17,6],[24,1,24,6],[1,1,1,3],[1,5,1,6],[61,1,61,7],[26,5,27,5],[19,1,19,2],[19,3,19,4],[34,1,34,2],[20,3,20,4],[21,3,21,4],[20,1,21,2],[22,1,22,4],[47,3,47,7],[47,2,48,2],[48,3,48,7],[25,2,27,2],[25,3,25,4],[25,5,25,7],[26,3,27,3]]}
["Інформація про умови кредитування та орієнтовну сукупну вартість кредиту"]
[null,"ПУБЛІЧНЕ АКЦІОНЕРНЕ ТОВАРИСТВО \"ТАСКОМБАНК\"  "]
[null,"Україна, 01032, м. Київ, вул. С. Петлюри, 30,"]
[null,"безкоштовний телефон: 0 (800) 503 580"]
[]
[null,null,"Розмір кредиту:"]
[null,null,"Вартість товару (послуги):",{"$f":"Калькулятор!O4","v":0},"грн."]
[null,null,"Сума на поточні потреби",{"$f":"Калькулятор!O5","v":0},"грн."]
[null,null,"Сума авансу:",{"$f":"Калькулятор!O7","v":0},"грн."]
[null,null,"Страховий платiж:",{"$f":"Калькулятор!O38","v":0},"грн."]
[null,null,"Оцінка предмету застави",{"$f":"Калькулятор!E20","v":0},"грн."]
[null,null,"Послуги нотаріуса",{"$f":"Калькулятор!E18","v":0},"грн."]
[null,null,"Плата за надання кредиту:",{"$f":"Калькулятор!I38*(-1)","v":-250},"грн."]
[null,null,"Сума договору:",{"$f":"Калькулятор!E5","v":50000},"грн."]
[null,null,"Страхова сума:",{"$f":"Калькулятор!O8","v":0},"грн."]
[null,"Розмір кредиту визначається, як сума вартості товару (послуги) та сума на поточні потреби (за наявності) за мінусом авансового внеску клієнта"]
[]
[]
[]
[null,"Internet-banking ТАС 24",null,"             Сплачуйте кредитну заборгованість через Інтернет, а також"]
[null,"https://tas24.ua",null,"-             Поповнюйте депозити"]
[null,null,null,"-             Здійснюйте платежі"]
[null,"Реєстрація та надання послуг безкоштовні. Детальніше на сайті системи https://tas24.ua"]
[]
[null,"                     Таблиця орієнтовних щомісячних платежів та подорожчання*:"]
[null,"Строк кредиту","Щомісячний платіж, грн","Орієнтовна сукупна вартість кредиту,всього:",null,"в тому числi"]
[null,"(місяців)",null,"у %","у грн.","Сума плати за надання кредиту, грн.","Сума плати за користування кредитом","Сума плати за обслуговування кредитної заборгованості, грн."]
[null,null,null,null,null,null,"(процентів), грн."]
[null,{"$f":"Калькулятор!E7","v":10},{"$f":"(Калькулятор!D159+Калькулятор!I159+Калькулятор!O159+Калькулятор!P159+Калькулятор!Q159)/'Додаток 21 \"Форма інформування\"'!B29","v":25},{"$f":"Калькулятор!R159","v":0.25740455985069277},{"$f":"Калькулятор!S159","v":55239.583333333336},{"$f":"D13","v":-250},{"$f":"Калькулятор!F159","v":4239.583333333333},{"$f":"Калькулятор!G159+Калькулятор!#REF!+Калькулятор!J159+Калькулятор!O159+Калькулятор!P159+Калькулятор!Q159","v":{"$error":"#REF!"}}]
[]
[null,"Переваги кредитування в рамках даного продукту:",null,null,null,"Вадами кредитування в рамках даного  продукту є подорожчання товару/послуги"]
[null,"·Оптимізація власного бюджету, за рахунок стабільних платежів"]
[null,"·Моментальне отримання товару"]
[null,"·Низька відсоткова ставка"]
[null,"·Зменшення переплати при достроковому погашенні."]
[]
[null,"Умови кредитування:"]
[null,null,"Назва кредитного продукту:",{"$f":"Калькулятор!E2","v":0}]
[null,null,"Валюта кредиту:",{"$f":"IF($D$38=Продукты!$B$2,Продукты!B3,IF($D$38=Продукты!$C$2,Продукты!C3,IF($D$38=Продукты!$D$2,Продукты!D3,IF($D$38=Продукты!$E$2,Продукты!E3,IF($D$38=Продукты!$F$2,Продукты!F3,IF($D$38=Продукты!$G$2,Продукты!G3,IF($D$38=Продукты!$H$2,Продукты!H3,IF($D$38=Продукты!$I$2,Продукты!I3,IF($D$38=Продукты!K2,Продукты!K3,IF($D$38=Продукты!L2,Продукты!L3,Продукты!N3))))))))))","v":"Гривня"}]
[null,null,"Форма кредиту:",{"$f":"IF($D$38=Продукты!$B$2,Продукты!B4,IF($D$38=Продукты!$C$2,Продукты!C4,IF($D$38=Продукты!$D$2,Продукты!D4,IF($D$38=Продукты!$E$2,Продукты!E4,IF($D$38=Продукты!$F$2,Продукты!F4,IF($D$38=Продукты!$G$2,Продукты!G4,IF($D$38=Продукты!$H$2,Продукты!H4,IF($D$38=Продукты!$I$2,Продукты!I4,IF($D$38=Продукты!K2,Продукты!K4,IF($D$38=Продукты!L2,Продукты!L4,Продукты!N4))))))))))","v":"Строковий кредит.\nСтроковий кредит - сума грошових коштів, що одноразово надається позичальнику на принципах безумовного повернення, строковості, платності, цільової спрямованості та забезпеченості.\nВиконання зобов’язання за кредитним договором, а саме повернення кредиту, сплата процентів та щомісячних комісій (в разі наявності) здійснюється таким чином:\n- проценти сплачуються щомісячно;\n- основний борг повертається щомісячно рівними частинами або ануїтетними платежами."}]
[null,null,"Мета кредиту:",{"$f":"IF($D$38=Продукты!$B$2,Продукты!B5,IF($D$38=Продукты!$C$2,Продукты!C5,IF($D$38=Продукты!$D$2,Продукты!D5,IF($D$38=Продукты!$E$2,Продукты!E5,IF($D$38=Продукты!$F$2,Продукты!F5,IF($D$38=Продукты!$G$2,Продукты!G5,IF($D$38=Продукты!$H$2,Продукты!H5,IF($D$38=Продукты!$I$2,Продукты!I5,IF($D$38=Продукты!K2,Продукты!K5,IF($D$38=Продукты!L2,Продукты!L5,Продукты!N5))))))))))","v":"Кредит надається безготівково на оплату товарів чи послуг та оплату супутніх послуг, які пов’язані з отриманням, обслуговуванням і погашенням кредиту."}]
[null,null,"Тип процентної ставки",{"$f":"IF($D$38=Продукты!$B$2,Продукты!B6,IF($D$38=Продукты!$C$2,Продукты!C6,IF($D$38=Продукты!$D$2,Продукты!D6,IF($D$38=Продукты!$E$2,Продукты!E6,IF($D$38=Продукты!$F$2,Продукты!F6,IF($D$38=Продукты!$G$2,Продукты!G6,IF($D$38=Продукты!$H$2,Продукты!H6,IF($D$38=Продукты!$I$2,Продукты!I6,IF($D$38=Продукты!K2,Продукты!K6,IF($D$38=Продукты!L2,Продукты!L6,Продукты!N6))))))))))","v":"Фіксована"}]
[null,null,"Плата за користування кредитом (проценти):",{"$f":"IF($D$38=Продукты!$B$2,Продукты!B7,IF($D$38=Продукты!$C$2,Продукты!C7,IF($D$38=Продукты!$D$2,Продукты!D7,IF($D$38=Продукты!$E$2,Продукты!E7,IF($D$38=Продукты!$F$2,Продукты!F7,IF($D$38=Продукты!$G$2,Продукты!G7,IF($D$38=Продукты!$H$2,Продукты!H7,IF($D$38=Продукты!$I$2,Продукты!I7,IF($D$38=Продукты!K2,Продукты!K7,IF($D$38=Продукты!L2,Продукты!L7,Продукты!N7))))))))))","v":"Від 0,001%"}]
[null,null,"Страховий тариф:",{"$f":"IF($D$38=Продукты!$B$2,Продукты!B8,IF($D$38=Продукты!$C$2,Продукты!C8,IF($D$38=Продукты!$D$2,Продукты!D8,IF($D$38=Продукты!$E$2,Продукты!E8,IF($D$38=Продукты!$F$2,Продукты!F8,IF($D$38=Продукты!$G$2,Продукты!G8,IF($D$38=Продукты!$H$2,Продукты!H8,IF($D$38=Продукты!$I$2,Продукты!I8,IF($D$38=Продукты!K2,Продукты!K8,IF($D$38=Продукты!L2,Продукты!L8,Продукты!N8))))))))))","v":"2,99% - страхування життя, від 6,0% - страхування КАСКО, від 400 грн. - страхування ОСАГО"}]
[null,null,"Cтроки фінансування:",{"$f":"IF($D$38=Продукты!$B$2,Продукты!B9,IF($D$38=Продукты!$C$2,Продукты!C9,IF($D$38=Продукты!$D$2,Продукты!D9,IF($D$38=Продукты!$E$2,Продукты!E9,IF($D$38=Продукты!$F$2,Продукты!F9,IF($D$38=Продукты!$G$2,Продукты!G9,IF($D$38=Продукты!$H$2,Продукты!H9,IF($D$38=Продукты!$I$2,Продукты!I9,IF($D$38=Продукты!K2,Продукты!K9,IF($D$38=Продукты!L2,Продукты!L9,Продукты!N9))))))))))","v":"Від 3 міс. до 84 міс."}]
[null,null,"Cуми кредитування:",{"$f":"IF($D$38=Продукты!$B$2,Продукты!B10,IF($D$38=Продукты!$C$2,Продукты!C10,IF($D$38=Продукты!$D$2,Продукты!D10,IF($D$38=Продукты!$E$2,Продукты!E10,IF($D$38=Продукты!$F$2,Продукты!F10,IF($D$38=Продукты!$G$2,Продукты!G10,IF($D$38=Продукты!$H$2,Продукты!H10,IF($D$38=Продукты!$I$2,Продукты!I10,IF($D$38=Продукты!K2,Продукты!K10,IF($D$38=Продукты!L2,Продукты!L10,Продукты!N10))))))))))","v":"Від 50 тис. до 800 тис. грн."}]
[null,null,"Форма забезпечення:",{"$f":"IF($D$38=Продукты!$B$2,Продукты!B11,IF($D$38=Продукты!$C$2,Продукты!C11,IF($D$38=Продукты!$D$2,Продукты!D11,IF($D$38=Продукты!$E$2,Продукты!E11,IF($D$38=Продукты!$F$2,Продукты!F11,IF($D$38=Продукты!$G$2,Продукты!G11,IF($D$38=Продукты!$H$2,Продукты!H11,IF($D$38=Продукты!$I$2,Продукты!I11,IF($D$38=Продукты!K2,Продукты!K11,IF($D$38=Продукты!L2,Продукты!L11,Продукты!N11))))))))))","v":"Застава автомобіля"}]
[null,null,"Необхідність здійснення оцінки майна",{"$f":"IF($D$38=Продукты!$B$2,Продукты!B12,IF($D$38=Продукты!$C$2,Продукты!C12,IF($D$38=Продукты!$D$2,Продукты!D12,IF($D$38=Продукты!$E$2,Продукты!E12,IF($D$38=Продукты!$F$2,Продукты!F12,IF($D$38=Продукты!$G$2,Продукты!G12,IF($D$38=Продукты!$H$2,Продукты!H12,IF($D$38=Продукты!$I$2,Продукты!I12,IF($D$38=Продукты!K2,Продукты!K12,IF($D$38=Продукты!L2,Продукты!L12,Продукты!N12))))))))))","v":"Необхідність оцінки майна відсутня"}]
[null,null,null,{"$f":"IF(D48=\"Заставна вартість нерухомості встановлюється на підставі проведеної незалежної оцінки незалежним оцінювачем \",Калькулятор!E19,\" \")","v":" "}]
[null,null,"Варіанти повернення (погашення) кредиту:"]
[null,null,"Форма (варіанти) погашення кредиту:",{"$f":"IF($D$38=Продукты!$B$2,Продукты!B14,IF($D$38=Продукты!$C$2,Продукты!C14,IF($D$38=Продукты!$D$2,Продукты!D14,IF($D$38=Продукты!$E$2,Продукты!E14,IF($D$38=Продукты!$F$2,Продукты!F14,IF($D$38=Продукты!$G$2,Продукты!G14,IF($D$38=Продукты!$H$2,Продукты!H14,IF($D$38=Продукты!$I$2,Продукты!I14,IF($D$38=Продукты!K2,Продукты!K14,IF($D$38=Продукты!L2,Продукты!L14,Продукты!N14))))))))))","v":"Класична форма погашення/щомісячно рівними (ануїтетними) платежами.\nПереваги класичної форми погашення: сума нарахованих процентів зменьшується значно швидше, ніж при ануїтетному платежі.\nНедоліки класичної форми погашення: на початк користування кредитними коштами сума щомісячного платежу буде більшою, ніж при поверненні ануїтетними платежами.\nПереваги ануїтетних платежів: повернення кредиту рівними платежами протягом всього строку кредитування. Зручність для позичальників з незмінною щомісячною сумою доходів. Щомісячний платіж меньший в порівнянні з поверненням кредитних коштів рівними частинами.\nНедоліки ануїтетних платежів: сума нарахованих процентів за весь строк користування кредитними коштами буде більше, ніж при поверненні кредиту рівними частинами."}]
[null,null,"Дострокове погашення:",{"$f":"IF($D$38=Продукты!$B$2,Продукты!B15,IF($D$38=Продукты!$C$2,Продукты!C15,IF($D$38=Продукты!$D$2,Продукты!D15,IF($D$38=Продукты!$E$2,Продукты!E15,IF($D$38=Продукты!$F$2,Продукты!F15,IF($D$38=Продукты!$G$2,Продукты!G15,IF($D$38=Продукты!$H$2,Продукты!H15,IF($D$38=Продукты!$I$2,Продукты!I15,IF($D$38=Продукты!K2,Продукты!K15,IF($D$38=Продукты!L2,Продукты!L15,Продукты!N15))))))))))","v":"Можливе часткове або повне дострокове погашення кредиту на умовах відсутності штрафних санкцій за вчинення таких дій позичальником"}]
[null,null,"Остаточне погашення:",{"$f":"IF($D$38=Продукты!$B$2,Продукты!B16,IF($D$38=Продукты!$C$2,Продукты!C16,IF($D$38=Продукты!$D$2,Продукты!D16,IF($D$38=Продукты!$E$2,Продукты!E16,IF($D$38=Продукты!$F$2,Продукты!F16,IF($D$38=Продукты!$G$2,Продукты!G16,IF($D$38=Продукты!$H$2,Продукты!H16,IF($D$38=Продукты!$I$2,Продукты!I16,IF($D$38=Продукты!K2,Продукты!K16,IF($D$38=Продукты!L2,Продукты!L16,Продукты!N16))))))))))","v":"В кінці строку, вказаного в Кредитному договорі"}]
[null,null,"Податковий режим сплати процентів та державні субсидії",{"$f":"IF($D$38=Продукты!$B$2,Продукты!B17,IF($D$38=Продукты!$C$2,Продукты!C17,IF($D$38=Продукты!$D$2,Продукты!D17,IF($D$38=Продукты!$E$2,Продукты!E17,IF($D$38=Продукты!$F$2,Продукты!F17,IF($D$38=Продукты!$G$2,Продукты!G17,IF($D$38=Продукты!$H$2,Продукты!H17,IF($D$38=Продукты!$I$2,Продукты!I17,IF($D$38=Продукты!K2,Продукты!K17,IF($D$38=Продукты!L2,Продукты!L17,Продукты!N17))))))))))","v":"По даному кредитному продукту податкові знижки відсутні, державні субсидії не передбачені"}]
[null,null,"Супутні послуги:"]
[null,null,"Плата за обслуговування кредитної заборгованості:",{"$f":"IF($D$38=Продукты!$B$2,Продукты!B19,IF($D$38=Продукты!$C$2,Продукты!C19,IF($D$38=Продукты!$D$2,Продукты!D19,IF($D$38=Продукты!$E$2,Продукты!E19,IF($D$38=Продукты!$F$2,Продукты!F19,IF($D$38=Продукты!$G$2,Продукты!G19,IF($D$38=Продукты!$H$2,Продукты!H19,IF($D$38=Продукты!$I$2,Продукты!I19,IF($D$38=Продукты!K2,Продукты!K19,IF($D$38=Продукты!L2,Продукты!L19,Продукты!N19))))))))))","v":"1,4% від суми кредиту"}]
[null,null,"Плата за надання кредиту:",{"$f":"IF($D$38=Продукты!$B$2,Продукты!B20,IF($D$38=Продукты!$C$2,Продукты!C20,IF($D$38=Продукты!$D$2,Продукты!D20,IF($D$38=Продукты!$E$2,Продукты!E20,IF($D$38=Продукты!$F$2,Продукты!F20,IF($D$38=Продукты!$G$2,Продукты!G20,IF($D$38=Продукты!$H$2,Продукты!H20,IF($D$38=Продукты!$I$2,Продукты!I20,IF($D$38=Продукты!K2,Продукты!K20,IF($D$38=Продукты!L2,Продукты!L20,Продукты!N20))))))))))","v":"від 0 до 2% від суми кредиту"}]
[]
[null,"Обов'язкові документи:"]
[null,"1. Паспорт громадянина України"]
[null,"2. Довідка про присвоєння ідентифікаційного номера платника податків (картка платника податків)"]
[null,"В окремих випадках Банк залишає за собою право вимагати інші документи, необхідні для визначення платоспроможності позичальника та які є необхідними для надання споживчого кредиту. "]
[]
[null,"З підписанням цієї Інформації (довідки) про кредит позичальник засвідчує, що перед укладанням Кредитного договору він ознайомлений з інформацією про  умови кредитування, а також повідомлений про орієнтовну сукупну вартість кредиту і ці умови є зрозумілими"]
[null,"_________________________________",null,null,"______________________"]
[null,null,"Позичальник","Уповноважена особа АТ \"ТАСКОМБАНК\""]
[null,"Ця Інформація (довідка) про кредит у разі укладання Кредитного договору №____________________ від______________20___р.** вважається (і) його невід’ємною частиною та (іі) детальним розписом сукупної вартості кредиту з урахуванням процентної ставки за ним, "]
[null,"п.3.1. та 3.4. Постанови Правління Національного банку України від 10.05.07р. №168 «Про затвердження Правил надання банками України інформації споживачу про умови кредитування та сукупну вартість кредиту»."]
[null,"_________________________________",null,null,"______________________"]
[null,null,"Позичальник","Уповноважена особа АТ \"ТАСКОМБАНК\""]
[null,"_ _ _ _ _ _ _ _ _ _ _ _ _ _ _"]
[null,"*Таблиця орієнтованих щомісячних платежів та подорожчання відображає суму щомісячного погашення кредиту в залежності від вибраного Вами строку кредитування. Таблиця НЕ Є графіком погашення. Графік погашення та чітка сума щомісячного платежу зазначені у Кредитному договорі"]
[null,"**У разі фактичного укладання Кредитного договору його номер та дата вписується уповноваженою особою АТ \"ТАСКОМБАНК\", на підтвердження чого Позичальник та уповноважена особа АТ \"ТАСКОМБАНК\" ставлять нижче свої підписи. "]
[null,"Один екземпляр Інформації про умови кредитування та орієнтовну сукупну вартість кредиту отримав(ла)."]
[]
[null,"_______________________",null,"____________________",null,"________________________"]
[null,"дата",null,"підпис",null,"ініціали та прізвище фізичної особи"]
[]
[]
[null,"_______________________",null,"____________________",null,"________________________"]
[null,"дата",null,"підпис",null,"ініціали та прізвище виконавця"]

{"sheet":"Продукты","index":3,"n_rows":23,"n_cols":14,"rows_kept":23,"cut":false,"hidden":true,"merged":[]}
[]
["Назва кредитного продукту","Кредит «Вперед к мечте»","Кредит на покупку недвижимости","Кредит под залог недвижимости","Кредит под депозит","Кредит на купівлю автомобіля, що був у використанні","Овердрафт для держателей зарплатных карт","Кредитная карта VIP","Овердрафт GOLD","Кредит на навчання","Кеш-кредит \"Зручна готівка\" із послугою страхування","Лізинг нерухомості","Кредит \"Легкий\"","Кредит \"Автосалон\""]
["Валюта кредиту","Гривня","Гривня","Гривня","Гривня/Долар США/Євро, відповідає валюті депозиту","Гривня","Гривня","Гривня","Гривня","Гривня","Гривня","Гривня","Гривня","Гривня"]
["Форма кредиту","Строковий кредит.\nСтроковий кредит - сума грошових коштів, що одноразово надається позичальнику на принципах безумовного повернення, строковості, платності, цільової спрямованості та забезпеченості.\nВиконання зобов’язання за кредитним договором, а саме повернення кредиту, сплата процентів та щомісячних комісій (в разі наявності) здійснюється таким чином:\n- проценти сплачуються щомісячно;\n- основний борг повертається щомісячно рівними частинами або ануїтетними платежами.","Строковий кредит.\nСтроковий кредит - сума грошових коштів, що одноразово надається позичальнику на принципах безумовного повернення, строковості, платності, цільової спрямованості та забезпеченості.\nВиконання зобов’язання за кредитним договором, а саме повернення кредиту, сплата процентів та щомісячних комісій (в разі наявності) здійснюється таким чином:\n- проценти сплачуються щомісячно;\n- основний борг повертається щомісячно рівними частинами або ануїтетними платежами.","Строковий кредит/кредитна лінія\nСтроковий кредит - сума грошових коштів, що одноразово надається позичальнику на принципах безумовного повернення, строковості, платності, цільової спрямованості та забезпеченості.\nКредитна лінія – кредитна угода, відповідно до якої протягом передбаченого договором терміну банк виділяє позичальнику кредит у межах узгодженої суми (ліміту кредитування) на умовах, що відрізняються від умов одноразового надання кредиту.","Строковий кредит/кредитна лінія\nСтроковий кредит - сума грошових коштів, що одноразово надається позичальнику на принципах безумовного повернення, строковості, платності, цільової спрямованості та забезпеченості.\nКредитна лінія – кредитна угода, відповідно до якої протягом передбаченого договором терміну банк виділяє позичальнику кредит у межах узгодженої суми (ліміту кредитування) на умовах, що відрізняються від умов одноразового надання кредиту.","Строковий кредит.\nСтроковий кредит - сума грошових коштів, що одноразово надається позичальнику на принципах безумовного повернення, строковості, платності, цільової спрямованості та забезпеченості.\nВиконання зобов’язання за кредитним договором, а саме повернення кредиту, сплата процентів та щомісячних комісій (в разі наявності) здійснюється таким чином:\n- проценти сплачуються щомісячно;\n- основний борг повертається щомісячно рівними частинами або ануїтетними платежами.","Кредит у формі овердрафту","Кредит у формі овердрафту","Кредит у формі овердрафту","Картковий кредит","Кредит готівкою","Лізинг \nЛізинг — підприємницька діяльність, спрямована на інвестування власних чи залучених фінансових коштів, яка полягає в наданні лізингодавцем у виключне користування на визначений строк лізингоодержувачу майна.","Строковий кредит.\nСтроковий кредит - сума грошових коштів, що одноразово надається позичальнику на принципах безумовного повернення, строковості, платності, цільової спрямованості та забезпеченості.\nВиконання зобов’язання за кредитним договором, а саме повернення кредиту, сплата процентів та щомісячних комісій (в разі наявності) здійснюється таким чином:\n- проценти сплачуються щомісячно;\n- основний борг повертається щомісячно рівними частинами або ануїтетними платежами.","Строковий кредит.\nСтроковий кредит - сума грошових коштів, що одноразово надається позичальнику на принципах безумовного повернення, строковості, платності, цільової спрямованості та забезпеченості.\nВиконання зобов’язання за кредитним договором, а саме повернення кредиту, сплата процентів та щомісячних комісій (в разі наявності) здійснюється таким чином:\n- проценти сплачуються щомісячно;\n- основний борг повертається щомісячно рівними частинами або ануїтетними платежами."]
["Мета кредиту","Кредит надається на купівлю нерухомості на вторинному ринку","Кредит надається на купівлю нерухомості","Кредит надається на купівлю нерухомості","Кредит надається безготівково на оплату товарів чи послуг та оплату супутніх послуг, які пов’язані з отриманням, обслуговуванням і погашенням кредиту.","Кредит надається безготівково на оплату товарів чи послуг та оплату супутніх послуг, які пов’язані з отриманням, обслуговуванням і погашенням кредиту.","Кредит надається безготівково на оплату товарів чи послуг та оплату супутніх послуг, які пов’язані з отриманням, обслуговуванням і погашенням кредиту.","Кредит надається безготівково на оплату товарів чи послуг та оплату супутніх послуг, які пов’язані з отриманням, обслуговуванням і погашенням кредиту.","Кредит надається безготівково на оплату товарів чи послуг та оплату супутніх послуг, які пов’язані з отриманням, обслуговуванням і погашенням кредиту.","Кредит надається безготівково на оплату товарів чи послуг та оплату супутніх послуг, які пов’язані з отриманням, обслуговуванням і погашенням кредиту.","Споживчі потреби","Фінансування надається безготівково на оплату товарів чи послуг та оплату супутніх послуг, які пов’язані з отриманням, обслуговуванням і погашенням фінансування.","Кредит надається безготівково на оплату товарів чи послуг та оплату супутніх послуг, які пов’язані з отриманням, обслуговуванням і погашенням кредиту.","Кредит надається безготівково на оплату товарів чи послуг та оплату супутніх послуг, які пов’язані з отриманням, обслуговуванням і погашенням кредиту."]
["Тип процентної ставки","Фіксована","Фіксована","Фіксована","Фіксована","Фіксована","Фіксована","Фіксована","Фіксована","Фіксована","Фіксована","Фіксована","Фіксована","Фіксована"]
["Плата за користування кредитом","Від 14% річних","24% річних - ануїтетна схема погашення; 24% - стандартна схема погашення","24% річних - ануїтетна схема погашення; 24% - стандартна схема погашення","Ставка по депозиту + 2,7%","Від 19,9%","36% річних","0,001% річних","35% річних","36% річних","19,99% річних","24% річних","Від 19,9%","Від 0,001%"]
["Страховий тариф","3% від залишку заборгованості по кредиту щорічно","0,5% - страхування життя, 0,3% - страхування предмету застави","0,5% - страхування життя, 0,3% - страхування предмету застави","-","2,99% - страхування життя, від 5,99% - страхування КАСКО, від 400 грн. - страхування ОСАГО","-","-","-","-","6% на рік, оплачується при оформленні кредиту одразу на весь строк кредиту шляхом перерахування на рахунок страхової компанії з Позичковго рахунку","1% - страхування життя, 0,3% - страхування предмету лізингу","2,99% - страхування життя, від 6,0% - страхування КАСКО, від 400 грн. - страхування ОСАГО","2,99% - страхування життя, від 6,0% - страхування КАСКО, від 400 грн. - страхування ОСАГО"]
["Строки кредитування","від 12 до 60 місяців","До 10 років","До 10 років","Строк депозиту - 32 дні","Від 3 міс. до 84 міс.","12 місяців","12 місяців","12 місяців","5 місяців","12/24/36 місяців","До 10 років","Від 3 міс. до 84 міс.","Від 3 міс. до 84 міс."]
["Суми кредитування","від 100 до 400 тис. грн.","Від 25 тис. до 2 млн. грн.","Від 25 тис. до 2 млн. грн., але не більше 50% вартості житла, яке надається в заставу",null,"Від 50 тис. до 800 тис. грн.","Від 500 грн. до 15 тис. грн. (але не більше 50% заробітної платні)","До 500 тис. грн.","До 50 тис. грн.","До 20 тис. грн.","Від 2 000 до 50 000 грн. з врахуванням суми страхового платежу","Від 25 тис. до 2 млн. грн.","Від 50 тис. до 800 тис. грн.","Від 50 тис. до 800 тис. грн."]
["Форма забезпечення","Застава автомобіля","Придбана нерухомість, порука фізичної (их) особи (осіб) ","Нерухоме майно, порука фізичної (их) особи (осіб)","Майнові права на депозит","Застава автомобіля","Забезпечення відсутнє","Забезпечення відсутнє","Забезпечення відсутнє","Забезпечення відсутнє","Забезпечення відсутнє","Придбана нерухомість","Застава автомобіля","Застава автомобіля"]
["Необхідність здійснення оцінки майна","Необхідність оцінки майна відсутня","Присутня необхідність проведення оцінки майна за рахунок клієнта у випадку передачі в іпотеку домоволодіння та/або земельної ділянки","Присутня необхідність проведення оцінки майна за рахунок клієнта у випадку передачі в іпотеку домоволодіння та/або земельної ділянки","Необхідність оцінки майна відсутня","Присутня необхідність проведення оцінки майна за рахунок клієнта","Необхідність оцінки майна відсутня","Необхідність оцінки майна відсутня","Необхідність оцінки майна відсутня","Необхідність оцінки майна відсутня","Необхідність оцінки майна відсутня","Присутня необхідність проведення оцінки майна за рахунок клієнта","Необхідність оцінки майна відсутня","Необхідність оцінки майна відсутня"]
["Варіанти повернення кредиту:"]
["Форма погашення кредиту","Щомісячно рівними (аннуїтетними) платежами.\nПереваги ануїтетних платежів: повернення кредиту рівними платежами протягом всього строку кредитування. Зручність для позичальників з незмінною щомісячною сумою доходів. Щомісячний платіж меньший в порівнянні з поверненням кредитних коштів рівними частинами.\nНедоліки ануїтетних платежів: сума нарахованих процентів за весь строк користування кредитними коштами буде більше, ніж при поверненні кредиту рівними частинами.","Класична форма погашення/щомісячно рівними (ануїтетними) платежами.\nПереваги класичної форми погашення: сума нарахованих процентів зменьшується значно швидше, ніж при ануїтетному платежі.\nНедоліки класичної форми погашення: на початк користування кредитними коштами сума щомісячного платежу буде більшою, ніж при поверненні ануїтетними платежами.\nПереваги ануїтетних платежів: повернення кредиту рівними платежами протягом всього строку кредитування. Зручність для позичальників з незмінною щомісячною сумою доходів. Щомісячний платіж меньший в порівнянні з поверненням кредитних коштів рівними частинами.\nНедоліки ануїтетних платежів: сума нарахованих процентів за весь строк користування кредитними коштами буде більше, ніж при поверненні кредиту рівними частинами.","Класична форма погашення/щомісячно рівними (ануїтетними) платежами.\nПереваги класичної форми погашення: сума нарахованих процентів зменьшується значно швидше, ніж при ануїтетному платежі.\nНедоліки класичної форми погашення: на початк користування кредитними коштами сума щомісячного платежу буде більшою, ніж при поверненні ануїтетними платежами.\nПереваги ануїтетних платежів: повернення кредиту рівними платежами протягом всього строку кредитування. Зручність для позичальників з незмінною щомісячною сумою доходів. Щомісячний платіж меньший в порівнянні з поверненням кредитних коштів рівними частинами.\nНедоліки ануїтетних платежів: сума нарахованих процентів за весь строк користування кредитними коштами буде більше, ніж при поверненні кредиту рівними частинами.","Класична форма погашення/щомісячно рівними (ануїтетними) платежами.\nПереваги класичної форми погашення: сума нарахованих процентів зменьшується значно швидше, ніж при ануїтетному платежі.\nНедоліки класичної форми погашення: на початк користування кредитними коштами сума щомісячного платежу буде більшою, ніж при поверненні ануїтетними платежами.\nПереваги ануїтетних платежів: повернення кредиту рівними платежами протягом всього строку кредитування. Зручність для позичальників з незмінною щомісячною сумою доходів. Щомісячний платіж меньший в порівнянні з поверненням кредитних коштів рівними частинами.\nНедоліки ануїтетних платежів: сума нарахованих процентів за весь строк користування кредитними коштами буде більше, ніж при поверненні кредиту рівними частинами.","Класична форма погашення/щомісячно рівними (ануїтетними) платежами.\nПереваги класичної форми погашення: сума нарахованих процентів зменьшується значно швидше, ніж при ануїтетному платежі.\nНедоліки класичної форми погашення: на початк користування кредитними коштами сума щомісячного платежу буде більшою, ніж при поверненні ануїтетними платежами.\nПереваги ануїтетних платежів: повернення кредиту рівними платежами протягом всього строку кредитування. Зручність для позичальників з незмінною щомісячною сумою доходів. Щомісячний платіж меньший в порівнянні з поверненням кредитних коштів рівними частинами.\nНедоліки ануїтетних платежів: сума нарахованих процентів за весь строк користування кредитними коштами буде більше, ніж при поверненні кредиту рівними частинами.","Щомісячний обов'язковий платіж","Щомісячний обов'язковий платіж","Щомісячний обов'язковий платіж","Щомісячний обов'язковий платіж","Щомісячний обов'язковий платіж (ануїтетний)","Класична форма погашення/щомісячно рівними (ануїтетними) платежами.\nПереваги класичної форми погашення: сума нарахованих процентів зменьшується значно швидше, ніж при ануїтетному платежі.\nНедоліки класичної форми погашення: на початк користування кредитними коштами сума щомісячного платежу буде більшою, ніж при поверненні ануїтетними платежами.\nПереваги ануїтетних платежів: повернення кредиту рівними платежами протягом всього строку кредитування. Зручність для позичальників з незмінною щомісячною сумою доходів. Щомісячний платіж меньший в порівнянні з поверненням кредитних коштів рівними частинами.\nНедоліки ануїтетних платежів: сума нарахованих процентів за весь строк користування кредитними коштами буде більше, ніж при поверненні кредиту рівними частинами.","Класична форма погашення/щомісячно рівними (ануїтетними) платежами.\nПереваги класичної форми погашення: сума нарахованих процентів зменьшується значно швидше, ніж при ануїтетному платежі.\nНедоліки класичної форми погашення: на початк користування кредитними коштами сума щомісячного платежу буде більшою, ніж при поверненні ануїтетними платежами.\nПереваги ануїтетних платежів: повернення кредиту рівними платежами протягом всього строку кредитування. Зручність для позичальників з незмінною щомісячною сумою доходів. Щомісячний платіж меньший в порівнянні з поверненням кредитних коштів рівними частинами.\nНедоліки ануїтетних платежів: сума нарахованих процентів за весь строк користування кредитними коштами буде більше, ніж при поверненні кредиту рівними частинами.","Класична форма погашення/щомісячно рівними (ануїтетними) платежами.\nПереваги класичної форми погашення: сума нарахованих процентів зменьшується значно швидше, ніж при ануїтетному платежі.\nНедоліки класичної форми погашення: на початк користування кредитними коштами сума щомісячного платежу буде більшою, ніж при поверненні ануїтетними платежами.\nПереваги ануїтетних платежів: повернення кредиту рівними платежами протягом всього строку кредитування. Зручність для позичальників з незмінною щомісячною сумою доходів. Щомісячний платіж меньший в порівнянні з поверненням кредитних коштів рівними частинами.\nНедоліки ануїтетних платежів: сума нарахованих процентів за весь строк користування кредитними коштами буде більше, ніж при поверненні кредиту рівними частинами."]
["Дострокове погашення","Можливе часткове або повне дострокове погашення кредиту на умовах відсутності штрафних санкцій за вчинення таких дій позичальником.","Можливе часткове або повне дострокове погашення кредиту на умовах відсутності штрафних санкцій за вчинення таких дій позичальником","Можливе часткове або повне дострокове погашення кредиту на умовах відсутності штрафних санкцій за вчинення таких дій позичальником","Можливе часткове або повне дострокове погашення кредиту на умовах відсутності штрафних санкцій за вчинення таких дій позичальником","Можливе часткове або повне дострокове погашення кредиту на умовах відсутності штрафних санкцій за вчинення таких дій позичальником","Можливе часткове або повне дострокове погашення кредиту на умовах відсутності штрафних санкцій за вчинення таких дій позичальником","Можливе часткове або повне дострокове погашення кредиту на умовах відсутності штрафних санкцій за вчинення таких дій позичальником","Можливе часткове або повне дострокове погашення кредиту на умовах відсутності штрафних санкцій за вчинення таких дій позичальником","Можливе часткове або повне дострокове погашення кредиту на умовах відсутності штрафних санкцій за вчинення таких дій позичальником","Можливе часткове або повне дострокове погашення кредиту на умовах відсутності штрафних санкцій за вчинення таких дій позичальником","Можливе часткове або повне дострокове погашення кредиту на умовах відсутності штрафних санкцій за вчинення таких дій лізингоодержувача","Можливе часткове або повне дострокове погашення кредиту на умовах відсутності штрафних санкцій за вчинення таких дій позичальником","Можливе часткове або повне дострокове погашення кредиту на умовах відсутності штрафних санкцій за вчинення таких дій позичальником"]
["Остаточне погашення","В кінці строку, вказаного в Кредитному договорі","В кінці строку, вказаного в Кредитному договорі","В кінці строку, вказаного в Кредитному договорі","В кінці строку, вказаного в Кредитному договорі","В кінці строку, вказаного в Кредитному договорі","В кінці строку, вказаного в Кредитному договорі","В кінці строку, вказаного в Кредитному договорі","В кінці строку, вказаного в Кредитному договорі","В кінці строку, вказаного в Кредитному договорі","В кінці строку, вказаного в Кредитному договорі в Графіку платежів","В кінці строку, вказаного в Договорі лізингу","В кінці строку, вказаного в Кредитному договорі","В кінці строку, вказаного в Кредитному договорі"]
["Податковий режим сплати процентів та державні субсидії","По даному кредитному продукту податкові знижки відсутні, державні субсидії не передбачені","По даному кредитному продукту податкові знижки відсутні, державні субсидії не передбачені","По даному кредитному продукту податкові знижки відсутні, державні субсидії не передбачені","По даному кредитному продукту податкові знижки відсутні, державні субсидії не передбачені","По даному кредитному продукту податкові знижки відсутні, державні субсидії не передбачені","По даному кредитному продукту податкові знижки відсутні, державні субсидії не передбачені","По даному кредитному продукту податкові знижки відсутні, державні субсидії не передбачені","По даному кредитному продукту податкові знижки відсутні, державні субсидії не передбачені","По даному кредитному продукту податкові знижки відсутні, державні субсидії не передбачені","По даному кредитному продукту податкові знижки відсутні, державні субсидії не передбачені","По даному кредитному продукту податкові знижки відсутні, державні субсидії не передбачені","По даному кредитному продукту податкові знижки відсутні, державні субсидії не передбачені","По даному кредитному продукту податкові знижки відсутні, державні субсидії не передбачені"]
["Супутні послуги:"]
["Плата за обслуговування кредитної заборгованості","Комісія відсутня","Комісія відсутня","Комісія відсутня","Комісія відсутня","Комісія відсутня","Комісія відсутня","3% від суми заборгованості на кінець місяця","Комісія відсутня","Комісія відсутня","2,95% від суми кредиту","Комісія відсутня","Комісія відсутня","1,4% від суми кредиту"]
["Плата за надання кредиту","3% від суми кредиту","1,5% від суми кредиту","від 1,5% від суми кредиту","0,5% від суми кредиту","від 0 до 2% від суми кредиту","Від 20 грн. до 300 грн. в залежності від суми кредитного ліміту","Комісія відсутня","Комісія відсутня","Комісія відсутня","Комісія відсутня","Не меньше 1,7% від суми фінансування","від 0 до 2% від суми кредиту","від 0 до 2% від суми кредиту"]
["послуги нотаріуса","Так","Так","Так","Ні","Так",null,null,null,null,null,"Так","Так","Так"]
["послуги оцінювача","Ні","Так\nЧП \"Актив Плюс\", ВАТ \"АКО-Експерт\", ПП \"Вітал-Профі\", ВАТ \"Кредитне Брокерське Агенство\", ВАТ \"Вектор оцінки\"","Так\nЧП \"Актив Плюс\", ВАТ \"АКО-Експерт\", ПП \"Вітал-Профі\", ВАТ \"Кредитне Брокерське Агенство\", ВАТ \"Вектор оцінки\"","Ні","Так\nЧП \"Актив Плюс\", ВАТ \"АКО-Експерт\", ПП \"Вітал-Профі\", ВАТ \"Кредитне Брокерське Агенство\", ВАТ \"Вектор оцінки\"","Ні","Ні","Ні","Ні","Ні","Так\nЧП \"Актив Плюс\", ВАТ \"АКО-Експерт\", ПП \"Вітал-Профі\", ВАТ \"Кредитне Брокерське Агенство\", ВАТ \"Вектор оцінки\"","Ні","Ні"]
["штрафи","Штраф – встановлюється в твердо визначеній грошовій сумі або у процентах від суми невиконаного або неналежного виконаного зобов’язання  і стягується одноразово. \nУ випадку надання завідомо недостовірної інформації, яка стосується умов цього Кредитного договору та/або процесу його виконання, Банк має право нарахувати та стягнути, а Позичальник сплачує Банку штраф у розмірі 5,0 % від суми кредиту.\nУ разі ненадання інформації, щодо фінансового та майнового стану, Банк має право нарахувати та стягнути, а Позичальник сплачує Банку штраф у розмірі 5,0 % від суми наданого кредиту. У разі невиконання умов щодо страхування життя та/або об’єкту застави процентна ставка збільшується на 10%."," - 5% від суми кредиту  за надання Позичальником завідомо недостовірної інформації, яка стосується умов  Кредитного договору та/або процесу його виконання.                                                                                                                                                - 5% від суми кредиту  за від суми наданого Кредиту за ненадання Позичальником інформації щодо його фінансового та майнового стану, а також, інформації, що стосується судових справ, стороною яких є Позичальник.                                                                                                           - 5% від суми кредиту за ненадання  Позичальником інформації та документів щодо зміни  його фінансового та майнового стану та не перешкоджати реалізації права Кредитора щодо проведення перевірки документально і в натурі наявності, стану і умов збереження та користування нерухомим майном, яке є забезпеченням по Кредиту.   "," - 5% від суми кредиту  за надання Позичальником завідомо недостовірної інформації, яка стосується умов  Кредитного договору та/або процесу його виконання.                                                                                                                                                - 5% від суми кредиту  за ненадання Позичальником інформації відносно зміни паспортних даних, місця роботи, контактних номерів телефонів, зміни у складі сім\"ї, а  також, інформації, що стосується судових спарав, стороною яких є Позичальник.                                                                                                           - 5% від суми кредиту за ненадання  Позичальником інформації та документів щодо зміни  його фінансового та майнового стану та не перешкоджати реалізації права Кредитора щодо проведення перевірки документально і в натурі наявності, стану і умов збереження та користування нерухомим майном, яке є забезпеченням по Кредиту.   ","Штраф – встановлюється в твердо визначеній грошовій сумі або у процентах від суми невиконаного або неналежного виконаного зобов’язання  і стягується одноразово.\nУ випадку надання завідомо недостовірної інформації, яка стосується умов Кредитного договору та/або процесу його виконання, Банк має право нарахувати та стягнути, а Позичальник сплачує Банку штраф у розмірі 5,0 % від суми кредиту.","Штраф – встановлюється в твердо визначеній грошовій сумі або у процентах від суми невиконаного або неналежного виконаного зобов’язання  і стягується одноразово. \nУ випадку надання завідомо недостовірної інформації, яка стосується умов цього Кредитного договору та/або процесу його виконання, Банк має право нарахувати та стягнути, а Позичальник сплачує Банку штраф у розмірі 5,0 % від суми кредиту.\nУ разі ненадання інформації, щодо фінансового та майнового стану, Банк має право нарахувати та стягнути, а Позичальник сплачує Банку штраф у розмірі 5,0 % від суми наданого кредиту. У разі невиконання умов щодо страхування життя та/або об’єкту застави процентна ставка збільшується на 10%.",null,null,null,null,null,"Штраф – встановлюється в твердо визначеній грошовій сумі або у процентах від суми невиконаного або неналежного виконаного зобов’язання  і стягується одноразово.\nУ випадку надання завідомо недостовірної інформації, яка стосується умов Кредитного договору та/або процесу його виконання, Банк має право нарахувати та стягнути, а Позичальник сплачує Банку штраф у розмірі 5,0 % (п’ять відсотків) від суми кредиту.\nУ разі ненадання інформації,  щодо фінансового та майнового стану, інформацію, що стосується судових справ, зміни своїх персональних даних, Позичальник зобов'язаний сплатити штраф у розмірі 1,0 % (одного відсотка) від суми наданого кредиту, вказаної у п. 2.1. Кредитного договору.\nУ разі невиконання умов щодо страхування життя та/або об’єкту застави процентна ставка збільшується на 10%.","Штраф – встановлюється в твердо визначеній грошовій сумі або у процентах від суми невиконаного або неналежного виконаного зобов’язання  і стягується одноразово. \nУ випадку надання завідомо недостовірної інформації, яка стосується умов цього Кредитного договору та/або процесу його виконання, Банк має право нарахувати та стягнути, а Позичальник сплачує Банку штраф у розмірі 5,0 % від суми кредиту.\nУ разі ненадання інформації, щодо фінансового та майнового стану, Банк має право нарахувати та стягнути, а Позичальник сплачує Банку штраф у розмірі 5,0 % від суми наданого кредиту. У разі невиконання умов щодо страхування життя та/або об’єкту застави процентна ставка збільшується на 10%.","Штраф – встановлюється в твердо визначеній грошовій сумі або у процентах від суми невиконаного або неналежного виконаного зобов’язання  і стягується одноразово. \nУ випадку надання завідомо недостовірної інформації, яка стосується умов цього Кредитного договору та/або процесу його виконання, Банк має право нарахувати та стягнути, а Позичальник сплачує Банку штраф у розмірі 5,0 % від суми кредиту.\nУ разі ненадання інформації, щодо фінансового та майнового стану, Банк має право нарахувати та стягнути, а Позичальник сплачує Банку штраф у розмірі 5,0 % від суми наданого кредиту. У разі невиконання умов щодо страхування життя та/або об’єкту застави процентна ставка збільшується на 10%."]

{"sheet":"Паспорт кредиту","index":4,"n_rows":90,"n_cols":2,"rows_kept":90,"cut":false,"hidden":true,"merged":[[8,1,9,1],[6,1,7,1],[11,1,13,1],[76,0,76,1],[36,0,37,0],[8,0,9,0],[11,0,13,0],[16,0,16,1],[22,0,22,1],[31,0,31,1],[58,0,58,1],[42,0,43,0],[17,1,21,1],[40,1,41,1],[1,0,1,1],[2,0,2,1],[3,0,3,1],[5,0,5,1],[6,0,7,0],[4,0,4,1],[89,0,89,1],[79,0,79,1],[84,0,84,1],[85,0,85,1],[38,0,39,0],[40,0,41,0],[46,0,47,0],[48,0,49,0],[88,0,88,1],[78,0,78,1],[59,0,59,1],[74,0,74,1],[60,0,60,1],[65,0,65,1],[67,0,67,1],[75,0,75,1]]}
[]
["Паспорт споживчого кредиту за продуктом \"Кредит фізичній особі під депозит\""]
["Інформація, яка надається споживачу до укладення договору про споживчий кредит "]
["(Стандартизована форма)"]
[{"$f":"Калькулятор!P31","v":"Класична схема"}]
["1. Інформація та контактні дані кредитодавця"]
["Найменування кредитодавця та його структурного або відокремленого підрозділу, в якому поширюється інформація","АКЦІОНЕРНЕ ТОВАРИСТВО «БАНК\n «УКРАЇНСЬКИЙ КАПІТАЛ» "]
[]
["Місцезнаходження кредитодавця та адреса структурного або відокремленого підрозділу, в якому поширюється інформація","03117, м. Київ, проспект Берестейський, буд. 67"]
[]
["Ліцензія/Свідоцтво","Реєстраційний запис у Державному реєстрі банків № 138 дата внесення до реєстру 25.12.1992 р., запис у Державному реєстрі банків про право юридичної особи на здійснення банківської діяльності № 26"]
["Номер контактного телефону","0 800 210 804"]
[]
[]
["Адреса електронної пошти","office@buc.com.ua"]
["Адреса офіційного веб-сайту","www.ukrcapital.com.ua"]
["2. Інформація та контактні дані кредитного посередника*"]
["Найменування кредитного посередника","*Інформація не заповнюється у зв'язку з відсутністю кредитного посередника при наданні Банком кредиту під заставу нерухомості"]
["Місцезнаходження"]
["Номер контактного телефону"]
["Адреса електронної пошти"]
["Адреса офіційного веб-сайту*"]
["3. Основні умови кредитування з урахуванням побажань споживача"]
["Тип кредиту",{"$f":"Калькулятор!F2","v":"кредит"}]
["Сума / ліміт кредиту, грн.",{"$f":"Калькулятор!E5","v":50000}]
["Строк кредитування, міс.",{"$f":"Калькулятор!E7","v":10}]
["Мета отримання кредиту","На споживчі цілі"]
["Спосіб та строк надання кредиту","Безготівковим шляхом на поточний рахунок Позичальника, відкритий в АТ «БАНК «УКРАЇНСЬКИЙ КАПІТАЛ», протягом 1 (одного) банківського дня від дати підписання договору  про споживчий кредит"]
["Можливі види (форми) забезпечення кредиту","Майнові права на депозит в національній валюті фізичної або юридичної особи – Клієнта Банку,  що розміщений в АТ «БАНК «УКРАЇНСЬКИЙ КАПІТАЛ» на строк що перевищує строк користування кредитними коштами."]
["Необхідність проведення оцінки забезпечення кредиту","Ні"]
["Мінімальний розмір власного платежу (фінансової участі) споживача за умови отримання кредиту на придбання товару/роботи/послуги, %","Відсутній \nСума кредиту не може перевищувати 99% від суми депозиту, наданого в забезпечення. "]
["4. Інформація щодо реальної річної процентної ставки та орієнтовної загальної вартості кредиту для споживача"]
["Процентна ставка, відсотків річних*                                               *Процентна ставка визначена, виходячи з наступних параметрів:\nпроцентна ставка по Депозиту  +  процентна маржа \n",{"$f":"Калькулятор!E9","v":0.185}]
["Тип процентної ставки","Фіксована"]
["Порядок зміни змінюваної процентної ставки","-"]
["Платежі за додаткові та/або супутні послуги кредитодавця, обов’язкові для укладання договору, грн.:","(зазначаються розмір платежу та база його розрахунку)"]
["1. Комісія за надання кредиту (одноразово від суми кредиту)",{"$f":"Калькулятор!E11","v":5.0000000000000001E-3}]
[null,{"$f":"Калькулятор!O11","v":250}]
["2. Обслуговування кредитної заборгованості (щомісячно від початкової суми кредиту)",{"$f":"Калькулятор!E12","v":0}]
[null,{"$f":"Калькулятор!O12","v":0}]
["3.Платіжне обслуговування / Відкриття поточного  рахунку ","Відповідно до Тарифів Банку розміщених на офіційному Інтернет сайті Банку https://ukrcapital.com.ua/uk/dokumenty/taryfni-pakety.html (Тарифний пакет \"Класик\")"]
[]
["4. Інші послуги Банку: комісія за супроводження кредиту (сплачується за перший місяць кредитування)",{"$f":"Калькулятор!E14","v":1.4999999999999999E-2}]
[null,{"$f":"Калькулятор!O14","v":750}]
["5. Оцінка майна, грн",{"$f":"Калькулятор!E20","v":0}]
["6. Нотаріальні послуги, грн",{"$f":"Калькулятор!E18","v":0}]
["7. Страхування об’єкту застави (від розміру оціночної вартості майна)",{"$f":"Калькулятор!E16","v":0}]
[null,{"$f":"Калькулятор!O16","v":0}]
["8. Страхування життя (від суми кредиту)",{"$f":"Калькулятор!E15","v":0}]
[null,{"$f":"Калькулятор!O15","v":0}]
["9. Інші послуги третіх осіб, всього",{"$f":"Калькулятор!P38","v":0}]
["9.1. Збір на обов'язкове державне пенсійне страхування",{"$f":" Калькулятор!E22","v":0}]
["9.2. Адміністративні збори",{"$f":" Калькулятор!E23","v":0}]
["Застереження: витрати на такі послуги можуть змінюватися протягом строку дії договору про споживчий кредит","[якщо платежі за послуги кредитодавця, пов’язані з отриманням, обслуговуванням і поверненням кредиту, є періодичними]"]
["Платежі за послуги кредитного посередника, що підлягають сплаті споживачем, грн*",{"$f":"Калькулятор!E17","v":0}]
["Загальні витрати за кредитом, грн.",{"$f":"B57-B25","v":5239.5833333333358}]
["Орієнтовна загальна вартість кредиту для споживача за весь строк користування кредитом (у т.ч. тіло кредиту, відсотки, комісії та інші платежі), грн.",{"$f":"Калькулятор!S159","v":55239.583333333336}]
["Реальна річна процентна ставка, відсотків річних",{"$f":"Калькулятор!R159","v":0.25740455985069277}]
["Застереження: наведені обчислення реальної річної процентної ставки та орієнтовної загальної вартості кредиту для споживача є репрезентативними та базуються на обраних споживачем умовах кредитування, викладених вище, і на припущенні, що договір про споживчий кредит залишатиметься дійсним протягом погодженого строку та що кредитодавець і споживач виконають свої обов’язки на умовах та у строки, визначені в договорі.  "]
["Реальна річна процентна ставка обчислена на основі припущення, що процентна ставка та інші платежі за послуги кредитодавця та третіх осіб залишатимуться незмінними та застосовуватимуться протягом строку дії договору про споживчий кредит."]
["Застереження: використання інших способів надання кредиту та/або зміна інших вищезазначених умов кредитування можуть мати наслідком застосування іншої реальної річної процентної ставки та орієнтовної загальної вартості кредиту для споживача."]
["Платежі за додаткові та/або супутні послуги третіх осіб, обов’язкові для укладення договору/отримання кредиту, грн.:","зазначаються розмір платежу та база його розрахунку"]
["послуги нотаріуса","відсутні"]
["послуги оцінювача","відсутні"]
["послуги страховика","відсутні"]
["5. Порядок повернення кредиту"]
["Кількість та розмір платежів, періодичність внесення","Надається у вигляді графіку платежів, у якому визначаються кількість, розмір платежів та періодичність їх внесення (за виключенням кредитування у вигляді кредитування рахунку, кредитної лінії, коли графік платежів може не надаватися)"]
["6. Додаткова інформація*"]
["Наслідки прострочення виконання та/або невиконання зобов’язань за договором про споживчий кредит:","-"]
["пеня","Пеня в розмірі подвійної облікової ставки Національного банку України, яка діяла в період, за який сплачується пеня, від суми платежу за кожний день прострочення - за порушення взятих на себе зобов'язань по своєчасному поверненню основної суми боргу та/або сплати процентів за користування кредитом та/або сплати суми комісійної винагороди, але не більше 15% від суми простроченого платежу."]
["штрафи","У випадку невиконання Позичальником обов’язків щодо надання документів, Банк має право нарахувати, вимагати, а Позичальник сплатити штраф у розмірі 500,00 грн. за кожний випадок.                                                                                                                                                           Сукупна сума неустойки (штраф, пеня) та інших платежів, що підлягають сплаті споживачем за порушення виконання його зобов'язань на підставі договору про споживчий кредит, не може перевищувати половини суми, одержаної споживачем за таким договором, і не може бути збільшена за домовленістю сторін."]
["Процентна ставка, яка застосовується\nпри невиконанні зобов'язання щодо повернення кредиту","-"]
["Плата за здійснення переказу коштів з інших банків в погашення кредитів, сплату відсотків та інших платежів за кредитами відповідно кредитних договорів","Згідно з тарифами відповідного банку"]
["Кредитодавець має право залучати до врегулювання простроченої заборгованості колекторську компанію.","Так"]
["Вимоги щодо взаємодії із споживачами при врегулюванні простроченої заборгованості (вимоги щодо етичної поведінки), встановлені статтею 25 Закону України \"Про споживче кредитування\"."]
["7. Інші важливі правові аспекти"]
["7.1. Споживач має право безкоштовно отримати копію проекту договору про споживчий кредит у письмовій чи електронній формі за своїм вибором. Це положення не застосовується у разі відмови кредитодавця від продовження процесу укладання договору зі споживачем."]
["7.2. Споживач має право відмовитися від договору про споживчий кредит протягом 14 календарних днів у порядку та на умовах, визначених Законом України \"Про споживче кредитування\".","Так"]
["7.3.Споживач має право достроково повернути споживчий кредит без будь-якої додаткової плати, пов’язаної з достроковим поверненням. Договором про споживчий кредит може бути встановлений обов’язок повідомлення кредитодавця про намір дострокового повернення споживчого кредиту з оформленням відповідного документа."]
["7.4. Умови договору про споживчий кредит можуть відрізнятися від інформації, наведеної в цьому Паспорті споживчого кредиту, та будуть залежати від проведеної кредитодавцем оцінки кредитоспроможності споживача з урахуванням, зокрема, наданої ним інформації про майновий та сімейний стан, розмір доходів тощо."]
["Дата надання інформації:","Ця інформація зберігає чинність та є актуальною до:"]
[]
["Підпис кредитодавця:___________________","__________________________________________ПІБ"]
[]
["Підтверджую отримання та ознайомлення з інформацією про умови кредитування та орієнтовну загальну вартість кредиту, надані виходячи із обраних мною умов кредитування."]
["Підтверджую отримання мною всіх пояснень, необхідних для забезпечення можливості оцінити, чи адаптовано договір до моїх потреб та фінансової ситуації, зокрема шляхом роз’яснення наведеної інформації, в тому числі суттєвих характеристик запропонованих послуг та певних наслідків, які вони можуть мати для мене, в тому числі в разі невиконання мною зобов’язань за таким договором."]
[]
["Підпис споживача:______________________","___ ___________ ____Дата, ______________________________ПІБ"]
["Підтверджую отримання мною інформації про право кредитодавця залучати до врегулювання простроченої заборгованості колекторську компанію у разі невиконання мною зобов’язань за договором про споживчий кредит, про встановлені законодавством вимоги щодо взаємодії із споживачами при врегулюванні простроченої заборгованості (вимоги щодо етичної поведінки), про моє право на звернення до Національного банку України у разі недотримання таких вимог кредитодавцем та/або колекторською компанією, а також про моє право на звернення до суду з позовом про відшкодування шкоди, завданої у процесі врегулювання простроченої заборгованості."]
["Підтверджую повідомлення мене про передбачену статтею 182 Кримінального кодексу України відповідальність за незаконне збирання, зберігання, використання, поширення мною конфіденційної інформації про третіх осіб, персональні дані яких передані мною кредитодавцю."]

{"sheet":"Калькулятор Сайт","index":5,"n_rows":38,"n_cols":7,"rows_kept":38,"cut":false,"hidden":true,"merged":[[20,5,20,6]]}
[]
[null,"розраховується на підставі калькулятора"]
[null,"для самостійного заповнення на сайті клієнтом"]
[null,"фіксовані значення відповідно умов програми з наданого калькулятора та паспорту кредиту"]
[]
[null,"Калькулятор \"Кредит на купівлю  нерухомості \" Програма 1"]
[]
[null,null,null,null,"РОЗРАХУНОК КРЕДИТУ"]
["Вартість нерухомості:"]
[null,null,null,null,"Сума кредиту ",null,"(розрахункова)"]
["Строк   кредиту:",null,"(Випадаючий список) (12,24,….120) -до 10 років",null,"щомісячний платіж ***"]
[]
["Аванс % від ватрості нерухомості",null,"(Випадаючий список) (50,60,70)- мінімальний 37,5%",null,"реальна річна  % ставка",null,"стовб. 17 Усього"]
[]
["Схема погашения",null,"Ануїтетна / Класична",null,"Загальні витрати за кредитом, грн.",null,"сума стовб. 6-16"]
[]
["Процентна ставка по договору % річних",null,"Фіксована (24,0% )",null,"Загальна вартість кредиту****, грн. ",null,"стовб. 18 Усього"]
[]
["Одноразова комісія % від суми кредиту ",null,"Фіксована 1,5%"]
[]
["Щомісячна комісія % від початкової суми кредиту",null,"             Відсутня",null,null,"ОФОРМИТИ ЗАЯВКУ"]
[]
["Платежі за послуги третіх осіб",null,"Всього за весь строк кредиту (сума стовб.13, 14 та 15)"]
[]
["Послуги нотаріуса",null,"Одноразово (фіксована сума)* (усього стовб 13)"]
[]
["Послуги оцінювача",null,"Одноразово (фіксована сума)* (усього стовб 14)"]
[]
["Послуги страховика",null,"За весть строк кредиту ** (усього стовб 15)"]
[]
[]
["* До розрахунку прийнята середня  вартість нотаріальної послуги  та послуги оцінювача (виключно в разі оцінки домоволодіння із земельною ділянкою) у м. Києві "]
[]
["** До розрахунку прийняті середні страхові тарифи, що застосовуються при страхуванні нерухомого майна та життя позичальника від НВ в акредитованих компаніях - партнерах банку "]
[]
["*** однакова сума на весь строк кредиту для ануітетної схеми погашення та сума платежу  зі щомісячним зменшенням  для класичної схеми погашення"]
[]
["****до загальної вартості кредиту включені   платежі  за весь строк користування кредитом (у т.ч. тіло кредиту, відсотки, комісії та платежі за послуги третіх осіб )"]

{"sheet":"Лист2","index":6,"n_rows":0,"n_cols":0,"rows_kept":0,"cut":false,"hidden":true,"merged":[]}

{"sheet":"Лист3","index":7,"n_rows":0,"n_cols":0,"rows_kept":0,"cut":false,"hidden":true,"merged":[]}